Cogmind - Beta 13 @@@ ROGUE MODE // 2024.04.16 @ 20:07:14 Player: Dosh Result: Escaped! Performance ------------- Evolutions (9) 4500 Regions Visited (47) 9400 Robots Destroyed (515) 2575 Value Destroyed (21736) 21736 Prototype IDs (124) 2480 Alien Tech Used (16) 3200 Bonus (32985) 32985 TOTAL SCORE: 76876 Bonus ------- High Alert Combat Kills 1021 Follower Combat Kills 1749 Entered Garrisons 400 Network Hubs Disabled 600 Aligned with FarCom 300 Met Data Miner 300 Acquired ECA 300 Met Zhirov 300 Met Warlord at Base 500 MAIN.C Attacked Warlord 500 Warlord Defense Kills 1378 Met Warlord at Research 2000 Recovered Sigix Corpse 2000 Met Architect 300 Destroyed A8 300 Destroyed A6 400 Destroyed A5 500 Destroyed A4 700 Destroyed A3 800 Destroyed A2 1000 Destroyed Architect 15000 Win 3000 Friendly Fire -363 Cogmind --------- Core Integrity 267/1600 Matter 415/425 Energy 369/375 System Corruption 0% Temperature Cool (14) Movement Flying (18) Location To Epsilon Eridani Parts ------- > --- POWER (2) -------- Compact Particle Reactor Graviton Reactor > --- PROPULSION (8) --- Cooled Field Propulsion Drive Q-thruster Electron Diverter Cooled Impulse Thruster Cooled Impulse Thruster Cooled Impulse Thruster Cooled Impulse Thruster > --- UTILITY (12) ----- Experimental Power Amplifier Quantum Shading Machine Experimental Optical Array Experimental Core Analyzer Quantum Capacitor Graphene Brace > --- WEAPON (4) ------- Neutron Cannon Helical Railgun Graviton Cannon > --- INVENTORY (5) ---- Hypervelocity Linear Accelerator Kinetic Spear Sigix Corpse Peak State ------------ > --- POWER ------------ Graviton Reactor Graviton Reactor > --- PROPULSION ------- Q-thruster Electron Diverter Electron Diverter Electron Diverter Cooled Impulse Thruster Cooled Impulse Thruster Cooled Impulse Thruster Cooled Impulse Thruster > --- UTILITY ---------- Experimental Power Amplifier Large Storage Unit Quantum Shading Machine Experimental Sensor Array Experimental Signal Interpreter Quantum Capacitor Advanced Reaction Control System Advanced Phase Shifter Experimental Cloaking Device Experimental Utility Shielding Graphene Brace > --- WEAPON ----------- Firepult Sigix Broadsword > --- INVENTORY -------- Compact Particle Reactor Advanced ECM Suite Experimental Utility Shielding Heavy Regenerative Plating Phase Redirector Supercharged TR Integrity Redistributor Integrity Redistributor Improved Potential Cannon [Rating: 237] Favorites ----------- Power Graviton Reactor Engine Improved Deuterium Engine Power Core Micro Fission Core Reactor Graviton Reactor Propulsion Cooled Impulse Thruster Treads Advanced Treads Flight Unit Cooled Impulse Thruster Utility Advanced Hacking Suite Device Experimental Sensor Array Storage Huge Storage Unit Processor Advanced Signal Interpreter Hackware Advanced Hacking Suite Protection Experimental Utility Shielding Artifact Spacefold Activator Weapon Enhanced Autogun Energy Gun EM Pulse Gun Energy Cannon Light EM Pulse Cannon Ballistic Gun Enhanced Autogun Ballistic Cannon Mass Driver Launcher Heavy Missile Launcher Impact Weapon Hammer Slashing Weapon Plasma Sword Piercing Weapon Kinetic Spear Special Melee Weapon Advanced Datajack Build | -11 -10 -10 -9 -9 -9 -8 -8 -8 -8 -8 -8 -7 -7 -7 -7 -7 -7 -6 -6 -6 -6 -6 -6 -6 -5 -5 -5 -5 -5 -5 -5 -5 -4 -4 -4 -4 -4 -4 -3 -3 -3 -2 -2 -2 -1 -1 -1 ------- Run | Yrd Mat Min Mat Min Exi Min Mat Gar Mat Gar Mat Fac Was Fac Low Low Dat Pro Fac Was Fac Low Low Zio Pro Fac Was Fac Ext Cet Arc Hub Fac Was Fac Upp Upp War Pro Res Tes Res Qua Sec Acc Com Ac0 Slots Evolved 18 | . . . 2 . . . 2 . . . . 2 . . . . . . 2 . . . . . . 2 . . . . . . 2 . . . . . . 2 . 2 . . 2 . . Power 1 | . . . . . . . . . . . . . . . . . . . . . . . . . . 1 . . . . . . . . . . . . . . . . . . . . . Propulsion 6 | . . . 1 . . . . . . . . 1 . . . . . . . . . . . . . 1 . . . . . . 1 . . . . . . 1 . . . . 1 . . Utility 10 | . . . 1 . . . 2 . . . . 1 . . . . . . 2 . . . . . . . . . . . . . 1 . . . . . . 1 . 2 . . . . . Weapon 1 | . . . . . . . . . . . . . . . . . . . . . . . . . . . . . . . . . . . . . . . . . . . . . 1 . . Parts Attached 495 | 7 5 3 24 5 1 2 10 4 14 16 14 11 1 22 . 2 1 1 21 . 7 6 . 4 2 11 1 26 8 5 . 11 56 . 40 4 1 7 2 10 25 11 11 40 12 11 20 Power 51 | 1 2 . 1 . . . 1 . 2 1 2 . . 1 . . . . 1 . . . . . . 2 . 3 2 . . 2 5 . 6 . . . . 2 12 . 2 . 1 . 2 Engine 13 | 1 2 . 1 . . . 1 . 2 1 2 . . . . . . . . . . . . . . . . . 2 . . . 1 . . . . . . . . . . . . . . Core 10 | . . . . . . . . . . . . . . 1 . . . . 1 . . . . . . 2 . 3 . . . 1 . . 2 . . . . . . . . . . . . Reactor 28 | . . . . . . . . . . . . . . . . . . . . . . . . . . . . . . . . 1 4 . 4 . . . . 2 12 . 2 . 1 . 2 Propulsion 91 | 2 . 1 7 . 1 . 3 . 3 2 5 1 . 6 . . . . 2 . 3 . . . . 4 1 5 . 1 . . 14 . 9 . . 2 . 1 6 3 2 2 1 . 4 Treads 28 | 2 . 1 7 . 1 . 3 . 3 2 5 . . . . . . . . . . . . . . . . 2 . 1 . . . . . . . . . . . . . . . . 1 Leg . | . . . . . . . . . . . . . . . . . . . . . . . . . . . . . . . . . . . . . . . . . . . . . . . . Wheel . | . . . . . . . . . . . . . . . . . . . . . . . . . . . . . . . . . . . . . . . . . . . . . . . . Hover . | . . . . . . . . . . . . . . . . . . . . . . . . . . . . . . . . . . . . . . . . . . . . . . . . Flight 63 | . . . . . . . . . . . . 1 . 6 . . . . 2 . 3 . . . . 4 1 3 . . . . 14 . 9 . . 2 . 1 6 3 2 2 1 . 3 Utility 223 | 1 2 2 8 2 . . 4 2 3 6 3 6 . 8 . 2 1 1 15 . 3 6 . . . 1 . 10 3 2 . 8 21 . 12 3 . 4 . 6 6 7 6 31 10 9 9 Device 116 | . . 1 . 1 . . . . 1 . . 2 . 5 . 2 . 1 4 . 2 5 . . . . . 6 2 1 . 1 10 . 4 3 . 3 . 5 3 5 5 25 8 6 5 Storage 11 | 1 1 . 2 . . . . . . . . . . . . . . . . . . 1 . . . 1 . 1 1 . . . 1 . 1 . . . . . . 1 . . . . . Processor 11 | . . . 1 . . . . . . 1 . 1 . 1 . . . . 1 . . . . . . . . . . . . . 1 . 1 . . . . . . 1 . 1 . . 2 Hackware 30 | . . . . . . . 1 . . 1 . 3 . 2 . . 1 . 9 . . . . . . . . . . . . 1 6 . 2 . . . . 1 1 . . 2 . . . Protection 53 | . 1 1 5 1 . . 3 2 2 4 3 . . . . . . . 1 . 1 . . . . . . 3 . 1 . 6 3 . 4 . . 1 . . 2 . 1 2 2 2 2 Artifact 2 | . . . . . . . . . . . . . . . . . . . . . . . . . . . . . . . . . . . . . . . . . . . . 1 . 1 . Weapon 130 | 3 1 . 8 3 . 2 2 2 6 7 4 4 1 7 . . . . 3 . 1 . . 4 2 4 . 8 3 2 . 1 16 . 13 1 1 1 2 1 1 1 1 7 . 2 5 Energy Gun 2 | 2 . . . . . . . . . . . . . . . . . . . . . . . . . . . . . . . . . . . . . . . . . . . . . . . Energy Cannon 16 | . 1 . . . . . . . . . . . . . . . . . 1 . . . . . . . . 2 2 1 . . . . 1 1 1 . 1 . 1 . . 1 . 2 1 Ballistic Gun 25 | 1 . . 4 2 . 2 1 1 4 4 3 . . . . . . . . . . . . . . . . . . 1 . 1 . . . . . . . . . . . . . . 1 Ballistic Cannon 8 | . . . 3 . . . 1 . . . . . . . . . . . . . . . . . . . . 2 . . . . . . . . . . . . . . . . . . 2 Launcher 29 | . . . 1 1 . . . 1 2 1 1 1 . 2 . . . . . . . . . 2 1 2 . 2 . . . . 6 . 4 . . 1 . 1 . . . . . . . Special Weapon . | . . . . . . . . . . . . . . . . . . . . . . . . . . . . . . . . . . . . . . . . . . . . . . . . Impact Weapon 3 | . . . . . . . . . . . . . . 1 . . . . . . . . . . . . . . . . . . . . . . . . . . . . . 2 . . . Slashing Weapon 36 | . . . . . . . . . . 2 . 3 . 4 . . . . 2 . 1 . . 2 1 2 . 1 1 . . . 7 . 3 . . . 1 . . 1 1 4 . . . Piercing Weapon 3 | . . . . . . . . . . . . . 1 . . . . . . . . . . . . . . 1 . . . . . . . . . . . . . . . . . . 1 Special Melee Weapon 8 | . . . . . . . . . . . . . . . . . . . . . . . . . . . . . . . . . 3 . 5 . . . . . . . . . . . . Unidentified Prototypes 35 | . . 1 1 1 . . . . . . . . . 1 . . . 1 . . . . . 2 . 2 . 1 1 3 . . 1 . . . . 3 . . 2 . 4 5 . . 6 Corrupted Parts 4 | . . 1 . . . . . . . . . . . . . . . . . . . . . . . . . 1 . 2 . . . . . . . . . . . . . . . . . System Corruption 21 | . . 5 . . . . . . . . . . . . . . . . . . . . . . . . . 7 . 9 . . . . . . . . . . . . . . . . . Parts Lost 53 | . 1 . 1 . . . 3 2 3 5 8 . . 3 . . . . 1 . 1 . . . . 1 . 2 . . . 5 2 . 3 . . . . . 1 1 . 1 . . 9 Power 12 | . 1 . . . . . 1 . . 1 1 . . . . . . . . . . . . . . 1 . 1 . . . 1 1 . 1 . . . . . 1 . . . . . 2 Propulsion 10 | . . . . . . . . . 2 1 3 . . . . . . . . . . . . . . . . . . . . . 1 . 1 . . . . . . 1 . . . . 1 Utility 22 | . . . 1 . . . . 2 . 2 2 . . 2 . . . . 1 . 1 . . . . . . 1 . . . 4 . . 1 . . . . . . . . 1 . . 4 Weapon 9 | . . . . . . . 2 . 1 1 2 . . 1 . . . . . . . . . . . . . . . . . . . . . . . . . . . . . . . . 2 Highest Loss Streak 5 | . 1 . 1 . . . 2 2 1 2 3 . . 1 . . . . 1 . 1 . . . . 1 . 1 . . . 2 1 . 1 . . . . . 1 1 . 1 . . 5 To Critical Strikes . | . . . . . . . . . . . . . . . . . . . . . . . . . . . . . . . . . . . . . . . . . . . . . . . . Average Slot Usage (%) 88 | . 98 100 99 99 78 93 96 99 99 94 98 69 70 73 92 92 92 88 87 93 87 92 93 92 93 90 88 84 71 70 72 74 87 90 93 90 90 87 90 89 87 89 91 92 85 84 80 Engine 3 | . 14 14 11 11 11 11 7 9 9 9 8 1 . . . . . . . . . . . . . . . . 1 5 5 4 2 . . . . . . . . . . . . . . Core 3 | . . . . . . . . . . . . 5 7 7 7 7 7 7 5 6 6 6 6 6 6 9 11 10 9 5 5 5 . . 3 . . . . . . . . . . . . Reactor 2 | . . . . . . . . . . . . . . . . . . . . . . . . . . . . . . . . . 5 10 6 10 10 10 10 9 7 8 7 8 6 7 6 Treads 10 | . 28 28 32 33 33 33 27 27 26 27 26 1 . . . . . . . . . . . . . . . 1 11 11 11 11 . . . . . . . . . . . . . . . Flight 14 | . . . . . . . . . . . . 6 7 7 30 30 30 29 24 25 23 25 25 25 25 26 27 22 . . . . 29 30 29 30 30 30 30 30 30 28 28 28 28 30 28 Device 9 | . . . . . . . . . 6 . . 13 15 14 15 15 15 14 7 6 12 11 12 12 12 11 11 10 10 9 11 12 11 10 12 18 20 17 15 13 14 12 13 17 21 29 22 Storage 5 | . 14 14 11 11 11 11 9 9 9 9 9 . . . . . . . . . . . . . . 1 5 5 5 5 5 5 5 5 5 5 5 5 5 4 4 4 4 4 3 2 . Processor 5 | . . . 9 11 11 11 9 9 8 1 . 6 7 7 7 7 7 7 6 6 6 6 6 6 6 5 5 5 5 5 5 5 5 5 5 5 5 5 5 4 4 7 8 5 3 3 5 Hackware 13 | . . . . . . . 8 9 9 16 14 22 23 23 23 23 23 22 32 31 25 25 25 25 25 22 22 14 5 5 5 2 19 20 16 15 15 15 15 17 18 16 16 15 10 . . Protection 6 | . 12 14 12 11 11 11 17 17 10 12 21 1 . . . . . . 1 6 5 6 6 6 6 3 . 4 5 5 5 9 2 5 4 2 . . 5 4 2 4 3 3 4 3 5 Energy Cannon 1 | . 10 14 2 . . . . . . . . . . . . . . . 3 6 . . . . . . . 1 3 5 5 1 . . . . . . . . . . . . . . 2 Ballistic Gun 5 | . 14 14 16 21 1 15 15 5 16 17 17 1 . . . . . . . . . . . . . . . . . 2 5 9 . . . . . . . . . . . . . . . Ballistic Cannon 1 | . . . 2 . . . 2 9 1 . . . . . . . . . . . . . . . . . . . 11 7 5 5 . . . . . . . . . . . . . . 1 Slashing Weapon 3 | . . . . . . . . . . . . 6 7 6 7 7 7 7 5 6 6 12 12 11 12 9 5 5 1 . . . 4 5 6 5 5 5 5 4 4 7 8 6 3 3 1 Naked Turns . | . . . . . . . . . . . . . . . . . . . . . . . . . . . . . . . . . . . . . . . . . . . . . . . . Heaviest Build 236 | 12 34 34 101 99 97 97 108 109 119 123 126 121 8 18 13 13 13 13 20 20 22 17 17 17 16 23 23 223 230 236 230 230 55 42 59 62 62 62 64 58 55 58 70 73 77 102 104 Greatest Support 150 | 40 40 40 66 66 66 66 66 66 66 66 64 60 50 50 28 20 28 28 28 20 20 20 28 20 28 25 35 140 140 150 150 150 49 56 74 62 62 62 65 74 70 70 83 94 102 102 102 Greatest Overweight (x) 5 | . . . 1 1 1 1 1 1 1 1 3 2 . 2 . . . . 1 . 1 . . . . . . 5 1 1 1 1 1 . . . . 2 . . 2 . . 1 . 1 1 Average Overweight (x) . | . . . . 1 1 1 1 1 1 1 1 . . . . . . . . . . . . . . . . . 1 1 1 1 . . . . . . . . . . . . . . . Largest Inventory Capacity 30 | 8 15 15 25 25 25 25 25 25 25 25 25 25 5 5 5 5 5 5 5 5 5 5 5 5 5 10 10 30 30 30 30 30 30 10 15 15 15 15 15 15 15 15 15 15 15 15 5 Average Capacity 15 | 7 12 15 21 25 25 25 25 25 25 25 25 6 5 5 5 5 5 5 5 5 5 5 5 5 5 6 10 13 30 30 30 30 10 10 10 15 15 15 15 15 15 15 15 15 15 13 5 Most Carried 30 | 3 12 13 24 25 25 25 25 24 25 24 24 21 5 5 5 5 5 5 5 5 5 5 5 5 5 10 10 19 23 30 30 30 29 10 13 14 14 15 15 15 15 15 15 15 15 15 5 Average Carried 13 | 1 8 12 20 24 24 23 22 23 24 20 21 5 5 4 5 5 4 5 4 5 4 5 5 4 5 6 10 9 19 26 30 28 8 9 9 13 13 14 13 13 14 14 14 14 14 11 3 Final Capacity 30 | 8 15 15 25 25 25 25 25 25 25 25 25 5 5 5 5 5 5 5 5 5 5 5 5 5 5 10 10 30 30 30 30 30 10 10 15 15 15 15 15 15 15 15 15 15 15 5 5 Final Carried 30 | 3 12 13 24 25 25 23 24 22 24 22 20 5 5 5 5 5 5 5 5 5 5 5 5 5 5 10 10 18 23 30 30 27 9 10 13 14 14 15 14 15 15 15 14 15 15 5 3 Class Distribution -------------------- 25% | Hacker-Scout 24% | Mutant 8% | Hacker-Mutant 7% | Wizard-Sprinter 5% | Machinist-Sprinter 5% | Wizard-Ninja 4% | Hauler-Tank 3% | Wizard-Scout Dominant Class ---------------- Mutant | -10/Materials Mutant | -10/Mines Mutant | -9/Materials Mutant | -9/Mines Mutant | -9/Exiles Mutant | -8/Mines Mutant | -8/Materials Mutant | -8/Garrison Mutant | -8/Materials Hacker-Mutant | -8/Garrison Hacker-Mutant | -8/Materials Hacker-Scout | -7/Factory Hacker-Scout | -7/Waste Hacker-Scout | -7/Factory Hacker-Scout | -7/Lower Caves Hacker-Scout | -7/Lower Caves Hacker-Scout | -7/Data Miner Hacker-Scout | -6/Proximity Caves Wizard-Sprinter | -6/Factory Wizard-Sprinter | -6/Waste Hacker-Scout | -6/Factory Hacker-Scout | -6/Lower Caves Hacker-Scout | -6/Lower Caves Hacker-Scout | -6/Zion Hacker-Scout | -5/Proximity Caves Hacker-Scout | -5/Factory Hacker-Scout | -5/Waste Hacker-Scout | -5/Factory Hauler-Tank | -5/Extension Hauler-Tank | -5/Cetus Hauler-Tank | -5/Archives Scavenger-Tank | -5/Hub_04(d) Hacker-Scout | -4/Factory Wizard-Sprinter | -4/Waste Machinist-Sprinter | -4/Factory Machinist-Ninja | -4/Upper Caves Machinist-Ninja | -4/Upper Caves Machinist-Sprinter | -4/Warlord Machinist-Sprinter | -3/Proximity Caves Wizard-Sprinter | -3/Research Wizard-Sprinter | -3/Testing Wizard-Ninja | -2/Research Wizard-Ninja | -2/Quarantine Wizard-Sprinter | -2/Section 7 Hacker-Sprinter | -1/Access Machinist-Sprinter | -1/Command Machinist-Sprinter | -1/Access_0 Resources | -11 -10 -10 -9 -9 -9 -8 -8 -8 -8 -8 -8 -7 -7 -7 -7 -7 -7 -6 -6 -6 -6 -6 -6 -6 -5 -5 -5 -5 -5 -5 -5 -5 -4 -4 -4 -4 -4 -4 -3 -3 -3 -2 -2 -2 -1 -1 -1 ----------- Run | Yrd Mat Min Mat Min Exi Min Mat Gar Mat Gar Mat Fac Was Fac Low Low Dat Pro Fac Was Fac Low Low Zio Pro Fac Was Fac Ext Cet Arc Hub Fac Was Fac Upp Upp War Pro Res Tes Res Qua Sec Acc Com Ac0 Matter Collected 12369 | 128 286 44 780 258 . 28 164 413 1065 940 806 201 . 501 5 43 . 20 209 . 107 60 . 18 23 208 . 470 582 169 . 830 852 . 764 40 . 9 36 341 259 110 150 647 87 90 626 Remotely 10 | . . . . . . . . . . . . . . . . . . . . . . 10 . . . . . . . . . . . . . . . . . . . . . . . . . Salvage Created 22095 | . 794 151 1223 453 . 42 382 274 1568 980 1061 61 . 388 . . 30 . 261 . 228 . . . . 765 . 830 422 204 . 1403 1009 . 920 67 . 243 . 409 465 534 148 1783 147 421 4429 Parts 1153 | . 42 8 89 31 . 5 22 31 100 40 82 11 . 47 . . 2 . 13 . 17 . . . . 39 . 66 14 10 . 65 68 . 68 . . 6 . 28 16 15 10 74 7 17 110 Haulers Intercepted 22 | . 2 . 5 . . . . . 5 . 2 . . . . . . . . . . . . . . 2 . . . . . . 1 . 2 . . . . . . 3 . . . . . Recyclers Shooed 5 | . . 1 . . . . . . 2 . 1 . . . . . . . . . . . . . . . . . . . . . . . . . . . . . . . . . . 1 . Parts Field Recycled . | . . . . . . . . . . . . . . . . . . . . . . . . . . . . . . . . . . . . . . . . . . . . . . . . Retrieved Matter . | . . . . . . . . . . . . . . . . . . . . . . . . . . . . . . . . . . . . . . . . . . . . . . . . Parts Self-Destructed 11 | . . . . . . . . . . . . . . . 11 . . . . . . . . . . . . . . . . . . . . . . . . . . . . . . . . Prevented 1 | . . . . . . . . . . . . . . . . . . . . . . . . . . . . . . . . . . . . 1 . . . . . . . . . . . Kills | -11 -10 -10 -9 -9 -9 -8 -8 -8 -8 -8 -8 -7 -7 -7 -7 -7 -7 -6 -6 -6 -6 -6 -6 -6 -5 -5 -5 -5 -5 -5 -5 -5 -4 -4 -4 -4 -4 -4 -3 -3 -3 -2 -2 -2 -1 -1 -1 ------- Run | Yrd Mat Min Mat Min Exi Min Mat Gar Mat Gar Mat Fac Was Fac Low Low Dat Pro Fac Was Fac Low Low Zio Pro Fac Was Fac Ext Cet Arc Hub Fac Was Fac Upp Upp War Pro Res Tes Res Qua Sec Acc Com Ac0 Combat Hostiles Destroyed 352 | . 14 6 22 12 . 3 7 19 24 20 22 3 . 11 . . . . 1 . . . . . . 10 . 16 4 4 . 23 22 . 22 . . 10 . 7 4 2 1 16 . . 47 Melee 36 | . . . . . . . . . . . 1 . . 3 . . . . 1 . . . . . . . . 3 . . . . 1 . 4 . . . . 2 4 2 1 14 . . . Guns 110 | . 5 3 14 9 . 3 4 2 16 19 18 . . . . . . . . . . . . . . . . . . . . 17 . . . . . . . . . . . . . . . Cannons 41 | . 8 3 5 . . . 3 5 2 . . . . . . . . . . . . . . . . . . 3 3 2 . 4 . . 1 . . . . . . . . . . . 2 AOE 112 | . 1 . 3 3 . . . 12 6 1 3 3 . 8 . . . . . . . . . . . 10 . 9 . . . . 21 . 17 . . 10 . 5 . . . . . . . Classes Destroyed 21 | . 7 1 4 . . . . . 2 2 . . . . . . . . . . . . . . . . . . 1 . . 1 . . 1 . . . . 1 1 . . . . . . Worker 17 | . . . 2 . . . . . 4 . 3 . . . . . . . 1 . 1 . . . . 1 . 1 . . . . 2 . 2 . . . . . . . . . . . . Builder 19 | . . . . . . . . . 4 . 2 . . 2 . . . . . . 1 . . . . 1 . 2 . . . 1 3 . . . . . . 3 . . . . . . . Tunneler 4 | . 1 . . . . . . . 1 . . . . . . . . . . . . . . . . 1 . . . . . . . . 1 . . . . . . . . . . . . Hauler 22 | . 2 . 5 . . . . . 5 . 2 . . . . . . . . . . . . . . 2 . . . . . . 1 . 2 . . . . . . 3 . . . . . Recycler 16 | . 1 . 1 1 . . 1 . . . . . . . . . . . 1 . . . . . . 2 . 1 2 . . . 2 . . . . . . 1 . . . 1 . 2 . Mechanic 1 | . 1 . . . . . . . . . . . . . . . . . . . . . . . . . . . . . . . . . . . . . . . . . . . . . . Operator 16 | . . . 4 . . . . . 2 . 1 2 . 3 . . . . . . . . . . . . . 1 . . . . . . . . . . . . . 1 . 2 . . . Drone 1 | . . . . . . . . . . . . . . . . . . . . . . . . . . . . . . . . . . . 1 . . . . . . . . . . . . Watcher 75 | . 2 . 2 . . . . . 4 . 3 . . 4 . . . . 2 . 6 . . . . 6 . 7 . . . 1 11 . 9 . . . . 2 2 1 2 4 4 3 . Swarmer 111 | . 3 3 6 4 . 3 . 11 . . 7 3 . 9 . . . . . . . . . . . 10 . 9 . . . . 20 . 18 . . . . 5 . . . . . . . Cutter 2 | . . . . . . . . . . . . . . . . . . . . . . . . . . . . . . . . . . . . . . . . 2 . . . . . . . Grunt 109 | . 11 2 10 5 . . 4 7 14 12 10 . . . . . . . . . . . . . . . . 3 1 . . 12 2 . 1 . . 8 . . . 2 1 4 . . . Brawler 4 | . . . . . . . . . . 2 1 . . . . . . . . . . . . . . . . . . . . . . . . . . 1 . . . . . . . . . Duelist 5 | . . . 1 1 . . . . 1 1 . . . . . . . . . . . . . . . . . . . . . . . . . . . 1 . . . . . . . . . Protector 2 | . . . . . . . . . . . . . . . . . . . . . . . . . . . . . . . . 2 . . . . . . . . . . . . . . . Researcher 3 | . . . . . . . . . . . . . . . . . . . . . . . . . . . . . . . . . . . . . . . . . 1 . . 2 . . . Sentry 36 | . . . 5 2 . . 3 1 7 4 4 . . . . . . . . . . . . . . . . 2 1 . . 2 . . . . . . . . 3 . . 2 . . . Demolisher 1 | . . 1 . . . . . . . . . . . . . . . . . . . . . . . . . . . . . . . . . . . . . . . . . . . . . Hunter 4 | . . . . . . . . . 2 . . . . . . . . . . . . . . . . . . . . . . 1 . . . . . . . . 1 . . . . . . Programmer 19 | . . . . . . . . . . 1 . . . 2 . . . . 1 . . . . . . . . 2 . . . 3 . . 2 . . . . . . . . 8 . . . Behemoth 1 | . . . . . . . . . . . . . . . . . . . . . . . . . . . . . 1 . . . . . . . . . . . . . . . . . . Cetus Guard 4 | . . . . . . . . . . . . . . . . . . . . . . . . . . . . . . 4 . . . . . . . . . . . . . . . . . S7 Guard 2 | . . . . . . . . . . . . . . . . . . . . . . . . . . . . . . . . . . . . . . . . . . . . 2 . . . Enhanced Grunt 31 | . . . . . . . . . . . . . . . . . . . . . . . . . . . . . . . . . . . . . . . . . . . . . . . 31 Enhanced Sentry 1 | . . . . . . . . . . . . . . . . . . . . . . . . . . . . . . . . . . . . . . . . . . . . . . . 1 Enhanced Hunter 8 | . . . . . . . . . . . . . . . . . . . . . . . . . . . . . . . . . . . . . . . . . . . . . . . 8 Lightning 3 | . . . . . . . . . . . . . . . . . . . . . . . . . . . . . . . . 3 . . . . . . . . . . . . . . . Surgeon 1 | . . . . . . . . . . . . . . . . . . . . . . . . . . . . . . . . . . . . . . 1 . . . . . . . . . Butcher 1 | . . . . . . . . . . . . . . . . . . . . . . . . . . . . . 1 . . . . . . . . . . . . . . . . . . Best Kill Streak 11 | . 6 3 3 4 . 2 4 11 8 3 4 3 . 5 . . 1 . 1 . 1 . . . . 7 . 6 3 4 . 7 8 . 6 . . 10 . 6 2 2 1 5 2 2 10 Combat Bots Only 11 | . 2 3 3 4 . 2 3 11 6 3 3 3 . 4 . . . . 1 . . . . . . 5 . 5 2 4 . 7 5 . 6 . . 10 . 5 2 1 1 5 . . 10 Max Kills in Single Turn 6 | . 2 1 2 3 . 1 1 6 4 1 2 2 . 2 . . 1 . 1 . 1 . . . . 4 . 4 1 1 . 2 4 . 6 . . 3 . 4 1 1 1 1 1 1 2 Gunslinging . | . . . . . . . . . . . . . . . . . . . . . . . . . . . . . . . . . . . . . . . . . . . . . . . . Exploded 6 | . 1 . 1 2 . . . 6 3 1 2 2 . 2 . . . . . . . . . . . 3 . 3 . . . . 4 . 4 . . 3 . 4 . . . . . . . Melee 1 | . . . . . . . . . . . 1 . . 1 . . . . 1 . . . . . . . . 1 . . . . 1 . 1 . . . . 1 1 1 1 1 . . . Uniques/NPCs Destroyed 8 | . . . . . . . . . . . . . . . . . 1 . . . . . . . . . . . . . . . . . . . . . . . . . . . . . 7 Data Miner (-7/Data Miner) A8 (-1/Access_0) A5 (-1/Access_0) A4 (-1/Access_0) A2 (-1/Access_0) A6 (-1/Access_0) A3 (-1/Access_0) Architect (-1/Access_0) Combat | -11 -10 -10 -9 -9 -9 -8 -8 -8 -8 -8 -8 -7 -7 -7 -7 -7 -7 -6 -6 -6 -6 -6 -6 -6 -5 -5 -5 -5 -5 -5 -5 -5 -4 -4 -4 -4 -4 -4 -3 -3 -3 -2 -2 -2 -1 -1 -1 -------- Run | Yrd Mat Min Mat Min Exi Min Mat Gar Mat Gar Mat Fac Was Fac Low Low Dat Pro Fac Was Fac Low Low Zio Pro Fac Was Fac Ext Cet Arc Hub Fac Was Fac Upp Upp War Pro Res Tes Res Qua Sec Acc Com Ac0 Hostile Shots Fired 1965 | . 39 14 58 44 . 8 63 61 105 105 130 24 . 69 11 . 1 28 83 . 10 . . . 4 19 . 92 51 26 . 104 46 . 78 . . . . 31 14 24 3 141 85 9 385 Missed 824 | . 13 4 18 11 . 1 22 23 25 29 33 14 . 35 5 . 1 18 41 . 7 . . . 3 9 . 29 9 7 . 23 16 . 35 . . . . 13 7 11 2 75 55 2 228 Damage Taken 23549 | . 307 100 597 590 . 59 629 467 1312 1188 1282 201 . 951 102 . . 112 476 . 21 . . . 26 170 . 1338 616 208 . 1886 697 . 923 63 . . . 478 213 344 41 1727 618 118 5689 Core 3679 | . 55 19 108 94 . . 89 23 94 109 87 . . 246 20 . . 34 147 . 5 . . . 26 41 . 422 46 . . 89 117 . 242 . . . . 158 78 150 . 297 20 . 863 Absorbed by Shields 853 | . . . . . . . . 90 . . . . . . . . . . 24 . . . . . . . . 201 229 79 . 230 . . . . . . . . . . . . . . . Reduced by Siege Mode 297 | . . . . . . . . . . . . . . . . . . . . . . . . . . . . 25 22 32 . 94 . . . . . . . . . . . . . . 124 Redirected to Shielding 1196 | . . . . . . . . . . . . . . . . . . . . . . . . . . . . 126 . . . . 62 . 61 . . . . 75 . 17 . 136 59 24 636 Ignored by Resistances 916 | . . . . . . . . . . 13 136 . . . . . . . . . . . . . . . . 264 260 204 . 39 . . . . . . . . . . . . . . . Regen/Repaired (Parts) 6352 | . . . 68 . . . . . 105 . 33 18 . . . . . . 364 . 97 . . . . 25 . 436 . . . . 530 . 379 . . . . . 322 . 241 1225 540 47 1922 Core Remaining (%) 58 | 100 . 70 . . . 49 . . . . 26 . . . . . . 57 . . . . . . 79 . . . . . . 40 . . . . . . 68 . 81 . . 52 . . 16 Volleys Fired 895 | . 34 8 82 24 . 4 29 42 114 101 82 2 . 7 . . . . 25 . . . . . 1 5 . 26 17 14 . 56 16 . 14 1 1 10 3 2 . . . 1 . . 174 Largest 4 | . 2 2 2 2 . 2 2 2 2 2 2 1 . 1 . . . . 1 . . . . . 1 1 . 2 3 3 . 3 1 . 1 1 1 1 1 1 . . . 1 . . 4 Hottest 278 | . 76 76 79 53 . 46 62 72 62 61 61 36 . 39 . . . . 90 . . . . . 39 39 . 110 208 198 . 127 46 . 98 98 98 46 98 46 . . . 200 . . 278 Shots Fired 1550 | . 68 16 165 48 . 7 56 61 205 183 163 2 . 9 . . . . 25 1 . . . . 1 5 . 36 50 33 . 144 16 . 15 1 1 10 3 2 . . . 1 . . 223 Gun 908 | . 35 8 120 46 . 7 44 17 182 180 161 . . . . . . . . . . . . . . . . . . . . 91 . . . . . . . . . . . . . . 17 Cannon 564 | . 33 8 42 . . . 12 38 19 . . . . . . . . . 25 1 . . . . . . . 31 50 33 . 53 . . 7 1 1 . 3 . . . . 1 . . 206 Launcher 78 | . . . 3 2 . . . 6 4 3 2 2 . 9 . . . . . . . . . . 1 5 . 5 . . . . 16 . 8 . . 10 . 2 . . . . . . . Special . | . . . . . . . . . . . . . . . . . . . . . . . . . . . . . . . . . . . . . . . . . . . . . . . . Kinetic 1160 | . 34 8 147 46 . 7 56 55 201 180 161 . . . . . . . . . . . . . . . . 22 34 20 . 140 . . . . . . . . . . . . . . 49 Thermal 231 | . . . . . . . . . . . . . . . . . . . 25 1 . . . . . . . 3 15 . . . . . 7 1 1 . 3 . . . . 1 . . 174 Explosive 78 | . . . 3 2 . . . 6 4 3 2 2 . 9 . . . . . . . . . . 1 5 . 5 . . . . 16 . 8 . . 10 . 2 . . . . . . . Electromagnetic 81 | . 34 8 15 . . . . . . . . . . . . . . . . . . . . . . . . 6 1 13 . 4 . . . . . . . . . . . . . . . Robot Hit Streak 25 | . 11 5 14 9 . 3 20 10 9 16 12 1 . . . . . . . 2 . . . . . . . 16 21 25 . 19 2 . 4 . . . . . . . . . . . 11 Robot Miss Streak 12 | . 2 2 4 1 . 2 1 1 4 3 4 1 . . . . . . . . . . . . . . . 1 2 2 . 4 . . 2 . . . . . . . . . . . 12 Penetration Max 1 | . . . . . . . . . . . . . . . . . . . . . . . . . . . . . 1 . . 1 . . . . . . . . . . . . . . . Secondary Targets 9 | . . . . . . 1 3 . . 2 2 . . . . . . . . . . . . . . . . . . . . 1 . . . . . . . . . . . . . . . Max Gunslinging Chain 1 | . . . . . . 1 1 . . 1 1 . . . . . . . . . . . . . . . . . . . . 1 . . . . . . . . . . . . . . . Capacitor 157 | . . . . . . . . . . . . . . . . . . . . . . . . . . . . . . . . . . . . . . . . . . . . . . . 157 Shots Hit Robots 1288 | . 45 9 110 37 . 4 47 39 132 134 98 7 . 24 . . 1 . 6 1 10 . . . . 19 . 40 37 27 . 90 31 . 29 1 . . . 13 15 25 7 64 9 11 166 Core Hits 881 | . 26 8 49 19 . 3 17 30 77 40 50 5 . 21 . . . . 4 . 5 . . . . 22 . 33 10 9 . 47 48 . 41 . . 36 . 9 4 9 3 24 3 3 226 Critical Kills 15 | . . . 1 1 . . . . . . 2 . . . . . . . . . . . . . . . . . 1 . . 10 . . . . . . . . . . . . . . . Critical Parts Destroyed 17 | . . . . . . . . . . . 1 . . 1 . . . . . . . . . . . . . . . . . 13 . . . . . . . . . . . . . . 2 Critical Strikes 66 | . . . 2 1 . . 1 1 . . 3 . . 4 . . . . . . . . . . . 1 . 1 1 1 . 25 5 . 1 . . . . 1 . 5 1 7 . . 5 Meltdown 1 | . . . . . . . . . . . . . . . . . . . . . . . . . . . . . 1 . . . . . . . . . . . . . . . . . . Destroy 33 | . . . 1 1 . . . . . . 3 . . . . . . . . . . . . . . . . . . . . 23 . . . . . . . . . . . . . . 5 Blast 5 | . . . 1 . . . 1 1 . . . . . . . . . . . . . . . . . . . . . . . 2 . . . . . . . . . . . . . . . Corrupt 2 | . . . . . . . . . . . . . . . . . . . . . . . . . . . . 1 . 1 . . . . . . . . . . . . . . . . . Smash 1 | . . . . . . . . . . . . . . 1 . . . . . . . . . . . . . . . . . . . . . . . . . . . . . . . . . Sever 24 | . . . . . . . . . . . . . . 3 . . . . . . . . . . . 1 . . . . . . 5 . 1 . . . . 1 . 5 1 7 . . . Melee Attacks 1015 | . . . . . . . . . . 4 . 34 . 107 2 15 10 3 46 . 37 2 . 1 2 69 . 97 3 . . . 92 . 111 5 4 14 2 31 26 58 37 127 43 13 20 Kinetic 6 | . . . . . . . . . . . . . . . . . . . . . . . . . . . . . . . . . . . . . . . . . . . . 6 . . . Impact 13 | . . . . . . . . . . . . . . 13 . . . . . . . . . . . . . . . . . . . . . . . . . . . . . . . . . Slashing 992 | . . . . . . . . . . 4 . 34 . 94 2 15 10 3 46 . 37 2 . 1 2 69 . 97 3 . . . 91 . 111 5 4 14 2 31 26 58 37 121 43 13 17 Piercing 3 | . . . . . . . . . . . . . . . . . . . . . . . . . . . . . . . . . . . . . . . . . . . . . . . 3 Sneak Attacks 56 | . . . . . . . . . . . . 2 . 4 . . 1 . 4 . 2 . . . . 6 . 1 2 . . . 5 . 7 . . . . 5 3 3 . 9 . 2 . Combat Hostiles 3 | . . . . . . . . . . . . . . . . . . . . . . . . . . . . . . . . . . . . . . . . . 1 . . 2 . . . Follow-up Attacks 15 | . . . . . . . . . . . . . . 1 . . . . . . . . . . . . . . . . . . . . . . . . . . . 4 1 9 . . . Damage Inflicted 64011 | . 1076 191 2145 804 . 65 791 1417 3288 2668 2145 510 . 1690 . . 100 . 596 27 714 . . . . 2265 . 2635 1630 870 . 3153 4298 . 3750 80 . 2987 . 1808 1125 1619 697 6025 1072 1317 10453 Guns 11435 | . 263 69 1296 604 . 65 579 172 2073 2267 1770 . . . . . . . . . . . . . . . . . . . . 2014 . . . . . . . . . . . . . . 263 Cannons 8876 | . 678 109 664 . . . 212 510 229 . . . . . . . . . . 27 . . . . . . . 743 1335 853 . 940 . . 64 . . . . . . . . . . . 2512 Explosions 20768 | . 98 . 136 174 . . . 735 901 396 207 202 . 521 . . . . . . . . . . . 769 . 1055 . . . 161 2409 . 1771 . . 2987 . 568 . . . . . . 7678 Melee 22372 | . . . . . . . . . . . . 308 . 1169 . . 100 . 596 . 714 . . . . 1496 . 836 174 . . . 1889 . 1915 80 . . . 1240 1125 1619 697 6025 1072 1317 . Ramming 560 | . 37 13 49 26 . . . . 85 5 168 . . . . . . . . . . . . . . . . 1 121 17 . 38 . . . . . . . . . . . . . . . Kinetic 16377 | . 241 69 1724 604 . 65 791 682 2302 2267 1770 . . . . . . . . . . . . . . . . 565 811 502 . 2827 . . . . . . . . . . . 216 . . 941 Thermal 10274 | . 98 . . 80 . . . . . . . . . . . . . . . 27 . . . . . . . . 493 . . . . . 64 . . . . . . . . . . . 9512 Explosive 12751 | . . . 136 94 . . . 735 901 396 207 202 . 521 . . . . . . . . . . . 769 . 1055 . . . . 2409 . 1771 . . 2987 . 568 . . . . . . . Electromagnetic 1893 | . 700 109 236 . . . . . . . . . . . . . . . . . . . . . . . . 178 31 351 . 288 . . . . . . . . . . . . . . . Impact 66 | . . . . . . . . . . . . . . 66 . . . . . . . . . . . . . . . . . . . . . . . . . . . . . . . . . Slashing 22090 | . . . . . . . . . . . . 308 . 1103 . . 100 . 596 . 714 . . . . 1496 . 836 174 . . . 1889 . 1915 80 . . . 1240 1125 1619 697 5809 1072 1317 . Piercing . | . . . . . . . . . . . . . . . . . . . . . . . . . . . . . . . . . . . . . . . . . . . . . . . . Highest Corruption 41 | . . 5 5 5 5 5 . 1 2 2 2 . 5 9 8 8 8 8 1 5 5 . . . . . 8 14 15 24 24 41 . 7 13 13 13 13 . 1 1 . . 5 . . . Average Corruption 7 | . . 5 3 5 5 5 . 1 1 2 2 . 5 6 8 8 8 8 1 5 2 . . . . . 8 7 14 20 24 27 . 7 11 13 13 13 . 1 1 . . 3 . . . Corruption Purged 18 | . . . . . . . . . . . . . . 5 . . . . 1 . 5 . . . . . . 7 . . . . . . . . . . . . . . . . . . . Corruption Blocked 65 | . . . . . . . . . . . . . . . . . . . . . . . . . . . . . . . . . . . . . . . . . . 65 . . . . . Effects 709 | . . . 25 26 13 5 . 3 33 24 45 . . 83 10 13 1 3 1 2 1 . . . . . 1 91 85 12 4 75 . 1 108 7 2 . . . 6 . . 29 . . . Message Errors 160 | . . . 10 5 3 1 . . 8 4 8 . . 18 4 3 . . . 1 . . . . . . . 22 27 . 2 9 . . 23 4 . . . . 2 . . 6 . . . Matter Fused 176 | . . . 7 7 4 3 . 1 10 6 14 . . 22 2 2 1 . 1 . 1 . . . . . . 19 19 2 1 12 . . 31 . 1 . . . . . . 10 . . . Heat Flow Errors 79 | . . . 2 4 1 . . 2 3 4 6 . . 6 1 2 . 1 . . . . . . . . . 7 8 2 . 7 . . 15 1 . . . . 3 . . 4 . . . Energy Discharges 94 | . . . 1 2 2 . . . 3 3 6 . . 12 2 2 . 1 . . . . . . . . . 13 12 5 1 10 . . 13 2 . . . . 1 . . 3 . . . Parts Rejected 6 | . . . . . . . . . . . 1 . . 1 . . . . . . . . . . . . 1 . 2 . . 1 . . . . . . . . . . . . . . . Parts Fused 7 | . . . . . . . . . . 2 . . . 1 . . . . . . . . . . . . . 2 . . . . . . 2 . . . . . . . . . . . . Data Loss (minor) 81 | . . . 1 2 2 . . . 2 4 3 . . 14 . 2 . 1 . . . . . . . . . 12 7 2 . 12 . 1 11 . 1 . . . . . . 4 . . . Data Loss (major) 38 | . . . 1 2 1 . . . . 1 1 . . 5 1 1 . . . . . . . . . . . 10 6 . . 4 . . 4 . . . . . . . . 1 . . . Misfires 17 | . . . 1 2 . . . . 4 . 3 . . 2 . . . . . 1 . . . . . . . . 1 1 . 1 . . 1 . . . . . . . . . . . . Alerts 17 | . . . 2 1 . . . . . . 1 . . 2 . 1 . . . . . . . . . . . 3 1 . . 4 . . 1 . . . . . . . . 1 . . . Misdirections 11 | . . . . . . . . . . . . . . . . . . . . . . . . . . . . 2 . . . 2 . . 7 . . . . . . . . . . . . Weapon Failures 23 | . . . . 1 . 1 . . 3 . 2 . . . . . . . . . . . . . . . . 1 2 . . 13 . . . . . . . . . . . . . . . Overload Shots 3 | . . . . . . . . . . . . . . . . . . . 3 . . . . . . . . . . . . . . . . . . . . . . . . . . . . Overflow Damage 4836 | . 28 . 1 7 . . . 29 1 22 10 86 . 81 . . 90 . 34 . 237 . . . . 244 . 124 159 . . 10 537 . 159 72 . 61 . 488 189 55 38 1154 383 537 . Projectiles 49 | . 28 . 1 . . . . 10 . . . . . . . . . . . . . . . . . . . . 2 . . . . . 8 . . . . . . . . . . . . Explosions 576 | . . . . 7 . . . 19 . 22 . 45 . 1 . . . . . . . . . . . 21 . 35 . . . 2 292 . 44 . . 61 . 27 . . . . . . . Melee 4211 | . . . . . . . . . 1 . 10 41 . 80 . . 90 . 34 . 237 . . . . 223 . 89 157 . . 8 245 . 107 72 . . . 461 189 55 38 1154 383 537 . Knockbacks 36 | . . . 2 . . . 4 4 1 . 2 . . . . . . . . . . . . . . . . 2 6 . . 10 . . . . . . . . . . . . . . 5 Impact 3 | . . . . . . . . . . . 2 . . . . . . . . . . . . . . . . . 1 . . . . . . . . . . . . . . . . . . Kinetic 31 | . . . 2 . . . 4 4 1 . . . . . . . . . . . . . . . . . . 2 3 . . 10 . . . . . . . . . . . . . . 5 Secondary 2 | . . . . . . . . . . . . . . . . . . . . . . . . . . . . . 2 . . . . . . . . . . . . . . . . . . Self-Inflicted Damage 812 | . . . . 90 . . . 38 . . . . . 122 . . . . . . . . . . . . . 46 . . . 98 24 . 182 . . . . . . . . . . . 212 Shots 40 | . . . . 3 . . . 2 . . . . . 3 . . . . . . . . . . . . . 2 . . . 1 2 . 4 . . . . . . . . . . . 23 Rammed 47 | . 3 3 5 2 . . . . 9 1 16 . . . . . . . . . . . . . . . . 1 5 1 . 1 . . . . . . . . . . . . . . . Targets Rammed 53 | . 4 3 6 2 . . . . 9 1 20 . . . . . . . . . . . . . . . . 1 5 1 . 1 . . . . . . . . . . . . . . . Kicked . | . . . . . . . . . . . . . . . . . . . . . . . . . . . . . . . . . . . . . . . . . . . . . . . . Crushed 6 | . 1 . 1 . . . . . . . 4 . . . . . . . . . . . . . . . . . . . . . . . . . . . . . . . . . . . . Highest Temperature 481 | . 222 117 279 270 236 . 106 156 322 481 355 . . 255 226 247 37 292 68 2 . . 20 465 48 . 54 254 382 332 . 262 220 63 302 334 40 64 94 239 281 78 344 279 198 198 178 Average Temperature 77 | . 54 49 64 53 122 . 30 27 52 86 109 . . 84 74 111 21 112 30 1 . . 8 238 24 . 36 76 98 151 . 44 56 23 44 36 9 21 30 91 91 31 98 98 113 110 125 Received Heat Transfer 4474 | . 153 45 201 183 . . 297 237 639 675 603 . . 48 27 . . 24 48 . 6 . . . . 18 . 94 618 . . 243 9 . 36 . . . . 12 27 45 . 144 18 . 24 Effects 20 | . . . 1 1 . . . . . 1 7 . . . . . . . . . . . . 1 . . . . 1 . . . 1 . 1 . . . . 1 1 . 1 3 . . . Shutdowns 2 | . . . . . . . . . . . 1 . . . . . . . . . . . . 1 . . . . . . . . . . . . . . . . . . . . . . . Energy Bleed 9 | . . . 1 1 . . . . . 1 2 . . . . . . . . . . . . . . . . . . . . . . . 1 . . . . 1 . . 1 1 . . . Interference 6 | . . . . . . . . . . . 2 . . . . . . . . . . . . . . . . . . . . . 1 . . . . . . . 1 . . 2 . . . Matter Decay 1 | . . . . . . . . . . . 1 . . . . . . . . . . . . . . . . . . . . . . . . . . . . . . . . . . . . Short Circuit 1 | . . . . . . . . . . . . . . . . . . . . . . . . . . . . . 1 . . . . . . . . . . . . . . . . . . Damage (minor) 1 | . . . . . . . . . . . 1 . . . . . . . . . . . . . . . . . . . . . . . . . . . . . . . . . . . . Siege Activations 16 | . . . . . . . . . . . . . . . . . . . . . . . . . . . . 2 3 1 . 9 . . . . . . . . . . . . . . 1 Total Turns 308 | . . . . . . . . . . . . . . . . . . . . . . . . . . . . 38 37 34 . 138 . . . . . . . . . . . . . . 61 Longest Duration 61 | . . . . . . . . . . . . . . . . . . . . . . . . . . . . 20 33 34 . 48 . . . . . . . . . . . . . . 61 Robots Corrupted 5 | . . . . . . . . . . . . . . . . . . . . . . . . . . . . 1 . 2 . 2 . . . . . . . . . . . . . . . Combat Hostiles 5 | . . . . . . . . . . . . . . . . . . . . . . . . . . . . 1 . 2 . 2 . . . . . . . . . . . . . . . Parts Fried 11 | . 5 . 1 . . . . . . . . . . . . . . . . . . . . . . . . 2 . . . 3 . . . . . . . . . . . . . . . Impact Corruptions 7 | . . . . . . . . . 1 . 1 . . 1 . . . . . . . . . . . . . . 3 . . 1 . . . . . . . . . . . . . . . Robots Melted 46 | . . . . . . . . . . . . . . . . . . . . . . . . . . . . . 1 . . . . . . . . . . . . . . . . . 45 Combat Hostiles 46 | . . . . . . . . . . . . . . . . . . . . . . . . . . . . . 1 . . . . . . . . . . . . . . . . . 45 Parts Melted 194 | . . . . . . . . . . 1 . . . . . . . . . . . . . . . . . . . . . . . . . . . . . . . . . 1 . . 192 Heat Transferred 36080 | . 100 . . 150 . . . . . . . . . . . . . . . 37 . . . . . . . . 700 . . . . . 100 . . . . . . . . . . . 34993 Parts Sabotaged . | . . . . . . . . . . . . . . . . . . . . . . . . . . . . . . . . . . . . . . . . . . . . . . . . Parts Stolen . | . . . . . . . . . . . . . . . . . . . . . . . . . . . . . . . . . . . . . . . . . . . . . . . . Parts Stripped 16 | . . . . . . . . . . . . . . . . . . . . . . . . . . . . . . . . . . . . . . . . . . . . 16 . . . Power Chain Reactions 3 | . 2 . . . . . . . . . . . . . . . . . . . . . . . . . . . . . . . . . 1 . . . . . . . . . . . . Alert | -11 -10 -10 -9 -9 -9 -8 -8 -8 -8 -8 -8 -7 -7 -7 -7 -7 -7 -6 -6 -6 -6 -6 -6 -6 -5 -5 -5 -5 -5 -5 -5 -5 -4 -4 -4 -4 -4 -4 -3 -3 -3 -2 -2 -2 -1 -1 -1 ------- Run | Yrd Mat Min Mat Min Exi Min Mat Gar Mat Gar Mat Fac Was Fac Low Low Dat Pro Fac Was Fac Low Low Zio Pro Fac Was Fac Ext Cet Arc Hub Fac Was Fac Upp Upp War Pro Res Tes Res Qua Sec Acc Com Ac0 Peak Influence 1377 | . 423 247 308 320 . 85 153 658 709 1377 725 146 28 414 . . . . 420 155 182 . . . . 831 30 475 197 152 60 656 595 184 768 . . . . 474 802 328 349 617 403 287 . Initial 670 | . . 127 39 66 . . 33 50 320 462 670 58 28 19 . . . . 375 110 108 . . . . 328 30 21 93 83 60 21 321 124 128 . . . . . 37 131 184 53 369 166 . Average 259 | . 164 154 148 211 . 37 73 423 371 942 346 55 28 137 . . . . 181 138 69 . . . . 396 30 223 72 137 60 124 321 149 358 . . . . 154 288 187 190 224 268 241 . Maximum Alert Level 4 | . 2 1 1 1 . . . 2 3 4 3 . . 2 . . . . 2 . . . . . . 3 . 2 . . . 2 2 . 3 . . . . 2 3 1 1 2 2 1 . Low Security (%) 48 | 100 58 63 73 47 . 100 100 25 . . 48 100 100 66 . . . . 60 100 100 . . . . 22 100 37 100 100 100 83 14 100 24 . . . . 68 28 54 46 52 15 26 . Level 1 31 | . 35 36 26 52 . . . 5 68 . 4 . . 32 . . . . 32 . . . . . . 35 . 54 . . . 6 64 . 30 . . . . 23 58 45 53 31 83 73 . Level 2 15 | . 6 . . . . . . 68 27 24 46 . . 1 . . . . 7 . . . . . . 37 . 8 . . . 10 20 . 42 . . . . 7 6 . . 16 . . . Level 3 2 | . . . . . . . . . 3 38 . . . . . . . . . . . . . . . 4 . . . . . . . . 2 . . . . . 6 . . . . . . Level 4 1 | . . . . . . . . . . 36 . . . . . . . . . . . . . . . . . . . . . . . . . . . . . . . . . . . . . Level 5 . | . . . . . . . . . . . . . . . . . . . . . . . . . . . . . . . . . . . . . . . . . . . . . . . . High Security . | . . . . . . . . . . . . . . . . . . . . . . . . . . . . . . . . . . . . . . . . . . . . . . . . Max Security . | . . . . . . . . . . . . . . . . . . . . . . . . . . . . . . . . . . . . . . . . . . . . . . . . Squads Dispatched 142 | . 3 . 2 . . . 2 . 13 . 4 3 . 20 . . . . 12 . 2 . . . . 4 . 11 3 . . 4 11 . 19 . . . . 2 7 2 3 10 5 . . Investigation 66 | . 3 . . . . . . . 1 . . 2 . 13 . . . . 8 . 2 . . . . 2 . 7 2 . . 1 7 . 10 . . . . 1 2 1 . 2 2 . . Extermination 29 | . . . . . . . . . . . . . . 5 . . . . 1 . . . . . . 1 . 3 . . . 1 2 . 4 . . . . . 2 . 3 6 1 . . Reinforcement 35 | . . . 2 . . . . . 4 . 4 1 . 2 . . . . 3 . . . . . . 1 . 1 1 . . 1 2 . 4 . . . . 1 3 1 . 2 2 . . Assault 2 | . . . . . . . . . . . . . . . . . . . . . . . . . . . . . . . . 1 . . 1 . . . . . . . . . . . . Garrison 10 | . . . . . . . 2 . 8 . . . . . . . . . . . . . . . . . . . . . . . . . . . . . . . . . . . . . . Intercept . | . . . . . . . . . . . . . . . . . . . . . . . . . . . . . . . . . . . . . . . . . . . . . . . . Searches Triggered 8 | . . . . . . . . . . . . . . . . . . . 1 . . . . . . 2 . 1 . . . . 1 . 3 . . . . . . . . . . . . Construction Impeded 3 | . . . . . . . . . 1 . . . . . . . . . . . . . . . . . . 1 . . . . . . . . . . . . 1 . . . . . . Haulers Reinforced 5 | . . . . . . . . . . . . . . . . . . . . . . . . . . 1 . . . . . . 1 . 2 . . . . . . 1 . . . . . Active Scanning Responses . | . . . . . . . . . . . . . . . . . . . . . . . . . . . . . . . . . . . . . . . . . . . . . . . . Cargo Convoy Interrupts 1 | . . . . . . . . . . . . . . . . . . . 1 . . . . . . . . . . . . . . . . . . . . . . . . . . . . Stealth | -11 -10 -10 -9 -9 -9 -8 -8 -8 -8 -8 -8 -7 -7 -7 -7 -7 -7 -6 -6 -6 -6 -6 -6 -6 -5 -5 -5 -5 -5 -5 -5 -5 -4 -4 -4 -4 -4 -4 -3 -3 -3 -2 -2 -2 -1 -1 -1 --------- Run | Yrd Mat Min Mat Min Exi Min Mat Gar Mat Gar Mat Fac Was Fac Low Low Dat Pro Fac Was Fac Low Low Zio Pro Fac Was Fac Ext Cet Arc Hub Fac Was Fac Upp Upp War Pro Res Tes Res Qua Sec Acc Com Ac0 Distress Signals 61 | . . . 5 . . . . . 3 . 3 3 . 3 . . . 1 3 . . . . . 1 2 . 1 2 1 . . 5 . 8 . . . . 1 1 5 2 2 8 1 . Communications Jammed . | . . . . . . . . . . . . . . . . . . . . . . . . . . . . . . . . . . . . . . . . . . . . . . . . Distress Signals . | . . . . . . . . . . . . . . . . . . . . . . . . . . . . . . . . . . . . . . . . . . . . . . . . Times Spotted 843 | . 18 6 37 12 . 2 8 24 48 29 37 16 3 47 12 3 3 10 27 6 17 . 2 . 4 23 3 45 21 5 . 29 46 7 61 . . 2 . 21 7 14 13 52 72 7 44 Peak Tracking Total 28 | . 3 3 3 4 . 2 3 11 8 5 7 4 4 5 13 2 4 7 6 6 4 . 2 . 7 9 3 6 7 5 . 6 12 7 12 . . 12 . 11 3 6 4 12 28 2 10 Tactical Retreats 136 | . 2 . 1 . . . . 3 3 1 1 4 . 13 1 1 . 2 10 . 3 . . . 1 6 . 10 . . . 3 11 . 21 . . . . 5 . 6 1 12 13 1 1 Traps | -11 -10 -10 -9 -9 -9 -8 -8 -8 -8 -8 -8 -7 -7 -7 -7 -7 -7 -6 -6 -6 -6 -6 -6 -6 -5 -5 -5 -5 -5 -5 -5 -5 -4 -4 -4 -4 -4 -4 -3 -3 -3 -2 -2 -2 -1 -1 -1 ------- Run | Yrd Mat Min Mat Min Exi Min Mat Gar Mat Gar Mat Fac Was Fac Low Low Dat Pro Fac Was Fac Low Low Zio Pro Fac Was Fac Ext Cet Arc Hub Fac Was Fac Upp Upp War Pro Res Tes Res Qua Sec Acc Com Ac0 Traps Triggered 49 | . 1 . 4 . . . . 3 . 5 2 2 . 3 . . . . 3 . 3 . . . . 2 . 9 1 . . . 2 . 4 1 . . . . 4 . . . . . . Indirectly . | . . . . . . . . . . . . . . . . . . . . . . . . . . . . . . . . . . . . . . . . . . . . . . . . Trap Hack Attempts 70 | . . . . . . . . . . . . . . . . . . . . . . . . . . . . . . . . . 23 . 47 . . . . . . . . . . . . Triggered . | . . . . . . . . . . . . . . . . . . . . . . . . . . . . . . . . . . . . . . . . . . . . . . . . Disarmed 3 | . . . . . . . . . . . . . . . . . . . . . . . . . . . . . . . . . 2 . 1 . . . . . . . . . . . . Reprogrammed 88 | . . . . . . . . . . . . . . . . . . . . . 12 . . . . . . . . . . . 40 . 30 . . . . 6 . . . . . . . Reused 43 | . . . . . . . . . . . . . . . . . . . . . . . . . . . . . . . . . 25 . 17 . . . . 1 . . . . . . . Traps Extracted . | . . . . . . . . . . . . . . . . . . . . . . . . . . . . . . . . . . . . . . . . . . . . . . . . Installed . | . . . . . . . . . . . . . . . . . . . . . . . . . . . . . . . . . . . . . . . . . . . . . . . . Triggered 53 | . . . . . . . . . . . . . . . . 1 . . 1 . . . . . . . . . . . . . 26 . 17 2 . 5 . 1 . . . . . . . Machines | -11 -10 -10 -9 -9 -9 -8 -8 -8 -8 -8 -8 -7 -7 -7 -7 -7 -7 -6 -6 -6 -6 -6 -6 -6 -5 -5 -5 -5 -5 -5 -5 -5 -4 -4 -4 -4 -4 -4 -3 -3 -3 -2 -2 -2 -1 -1 -1 ---------- Run | Yrd Mat Min Mat Min Exi Min Mat Gar Mat Gar Mat Fac Was Fac Low Low Dat Pro Fac Was Fac Low Low Zio Pro Fac Was Fac Ext Cet Arc Hub Fac Was Fac Upp Upp War Pro Res Tes Res Qua Sec Acc Com Ac0 Machines Disabled 95 | . 1 . 1 4 . . . 2 . 1 1 . . 8 . . 1 . . . . . . . . 2 . 1 4 . . 8 10 . 11 . . 2 . 1 4 2 8 8 1 . 14 Max in Single Turn 4 | . 1 . 1 3 . . . 1 . 1 1 . . 4 . . 1 . . . . . . . . 1 . 1 1 . . 4 4 . 2 . . . . 1 1 1 1 1 1 . 1 Garrison Access 28 | . . . . . . . . . . . . 2 . 2 . . . . 1 . 2 . . . . 1 . 3 . . . 1 4 . 4 . . . . 1 1 1 . 1 4 . . Garrison Relay 1 | . . . . . . . . 1 . . . . . . . . . . . . . . . . . . . . . . . . . . . . . . . . . . . . . . . Network Hub 3 | . . . . . . . . . . . . . . . . . . . . . . . . . . . . . . . . 3 . . . . . . . . . . . . . . . Energy Cycler 2 | . . . . . . . . . . . . . . . . . . . . . . . . . . . . . 2 . . . . . . . . . . . . . . . . . . Machines Repaired . | . . . . . . . . . . . . . . . . . . . . . . . . . . . . . . . . . . . . . . . . . . . . . . . . Machines Dismantled . | . . . . . . . . . . . . . . . . . . . . . . . . . . . . . . . . . . . . . . . . . . . . . . . . Machines Sabotaged 1 | . . . . . . . . . . . . . . . . . . . . . . . . . . . . . . . . 1 . . . . . . . . . . . . . . . Overloaded Fab Kills . | . . . . . . . . . . . . . . . . . . . . . . . . . . . . . . . . . . . . . . . . . . . . . . . . Hacking | -11 -10 -10 -9 -9 -9 -8 -8 -8 -8 -8 -8 -7 -7 -7 -7 -7 -7 -6 -6 -6 -6 -6 -6 -6 -5 -5 -5 -5 -5 -5 -5 -5 -4 -4 -4 -4 -4 -4 -3 -3 -3 -2 -2 -2 -1 -1 -1 --------- Run | Yrd Mat Min Mat Min Exi Min Mat Gar Mat Gar Mat Fac Was Fac Low Low Dat Pro Fac Was Fac Low Low Zio Pro Fac Was Fac Ext Cet Arc Hub Fac Was Fac Upp Upp War Pro Res Tes Res Qua Sec Acc Com Ac0 Machines Accessed 346 | . 10 1 13 . 2 . 1 2 7 3 6 16 . 25 2 . 4 . 23 . 15 . . . . 21 . 29 13 . . 3 35 . 34 1 1 5 . 5 14 4 13 18 17 1 2 Terminals 196 | . 8 . 9 . . . . 2 4 3 4 10 . 15 . . . . 10 . 8 . . . . 12 . 12 12 . . 3 17 . 19 . 1 . . 3 9 3 9 13 9 1 . Fabricators 36 | . . . . . . . . . . . . 2 . 6 . . . . 5 . 2 . . . . 1 . 4 . . . . 6 . 6 . . . . 1 1 . . . 2 . . Repair Stations 34 | . . . 2 . . . . . 1 . 2 2 . . . . . . 4 . 3 . . . . 2 . 6 . . . . 4 . 3 . . . . . 1 . 1 1 2 . . Recycling Units 16 | . 2 . . . . . . . . . . . . 1 . . . . 2 . . . . . . 3 . 3 1 . . . 3 . 1 . . . . . . . . . . . . Scanalyzers 17 | . . . 2 . . . . . 1 . . . . . . . . . 1 . . . . . . 2 . 1 . . . . 1 . 1 . . . . . 2 . 3 3 . . . Garrison Access 30 | . . . . . . . 1 . 1 . . 2 . 3 . . . . 1 . 2 . . . . 1 . 3 . . . . 4 . 4 . . . . 1 1 1 . 1 4 . . Total Hacks 1234 | . 30 1 38 . 2 . 1 4 22 8 22 33 . 69 6 . 27 . 82 . 48 . . . . 55 . 88 28 . . 5 153 . 168 1 1 10 . 39 64 20 68 55 64 5 17 Successful 818 | . 18 1 22 . 2 . 1 2 10 1 14 24 . 42 6 . 27 . 65 . 36 . . . . 37 . 66 6 . . 2 109 . 109 1 1 10 . 22 45 3 41 37 39 2 17 Failed 410 | . 11 . 15 . . . . 2 12 7 8 8 . 27 . . . . 17 . 12 . . . . 17 . 21 22 . . 3 43 . 59 . . . . 17 19 17 27 18 25 3 . Catastrophic 65 | . 2 . 2 . . . . 1 2 1 . 2 . 6 . . . . 1 . . . . . . . . 1 1 . . . 10 . 12 . . . . 5 3 5 . 6 5 . . Database Lockouts 6 | . 1 . 1 . . . . . . . . 1 . . . . . . . . . . . . . 1 . 1 . . . . 1 . . . . . . . . . . . . . . Manual 504 | . 18 . 12 . 1 . . 3 12 4 6 19 . 31 . . . . 37 . 20 . . . . 29 . 39 5 . . 3 73 . 76 . . 1 . 26 25 16 6 25 14 3 . Terminals 753 | . 27 . 26 . . . . 4 13 8 17 24 . 44 . . . . 41 . 30 . . . . 36 . 37 26 . . 5 89 . 105 . 1 . . 29 43 18 40 45 40 5 . Fabricators 143 | . . . . . . . . . . . . 2 . 19 . . . . 19 . 8 . . . . 4 . 14 . . . . 30 . 29 . . . . 8 5 . . . 5 . . Repair Stations 155 | . . . 6 . . . . . 2 . 5 4 . . . . . . 14 . 8 . . . . 4 . 19 . . . . 22 . 24 . . . . . 10 . 21 4 12 . . Recycling Units 37 | . 3 . . . . . . . . . . . . 1 . . . . 6 . . . . . . 7 . 10 2 . . . 5 . 3 . . . . . . . . . . . . Scanalyzers 41 | . . . 6 . . . . . 5 . . . . . . . . . 1 . . . . . . 3 . 5 . . . . 2 . 2 . . . . . 5 . 7 5 . . . Garrison Access 41 | . . . . . . . 1 . 2 . . 3 . 5 . . . . 1 . 2 . . . . 1 . 3 . . . . 5 . 5 . . . . 2 1 2 . 1 7 . . Terminal Hacks 396 | . 14 1 12 . 2 . . 1 1 1 9 9 . 15 6 . 27 . 20 . 15 . . . . 17 . 21 6 . . 1 43 . 44 1 1 10 . 13 20 2 19 24 22 2 17 Record 54 | . 1 . . . 1 . . . . . . . . . 5 . 11 . . . . . . . . 1 . . . . . . 1 . . . 1 4 . . 1 . 2 3 5 2 16 Part Schematic 31 | . 1 . . . . . . . . . . 1 . 2 . . 9 . 1 . 3 . . . . 2 . 3 . . . . 4 . 2 . . . . . 2 . . 1 . . . Robot Schematic 6 | . . . . . . . . . . . . . . 1 . . 4 . . . 1 . . . . . . . . . . . . . . . . . . . . . . . . . . Robot Analysis 16 | . 3 . 2 . . . . . . . . 2 . . . . . . . . . . . . . 2 . . . . . . 1 . 2 . . . . . 1 1 2 . . . . Prototype ID Bank 23 | . 4 . 3 . . . . . . . 2 . . . . . 3 . 1 . 1 . . . . . . . . . . . 2 . . . . 4 . . . . 3 . . . . Open Door 20 | . . 1 . . . . . . . . . . . . 1 . . . . . . . . . . . . 1 6 . . . . . . 1 . 2 . . 1 . . 4 3 . . Level Access Points 3 | . . . . . . . . . . . . . . . . . . . 1 . . . . . . 1 . . . . . . . . . . . . . . . . . . 1 . . Branch Access Points 8 | . . . 1 . . . . . . . . . . 1 . . . . 1 . . . . . . . . 1 . . . . . . 1 . . . . 1 1 . . . 1 . . Machine Index 8 | . . . . . . . . . . . . . . . . . . . . . 1 . . . . 1 . . . . . . 1 . 1 . . . . . 1 . 1 1 1 . . Terminal Index 8 | . . . 1 . . . . . . . . 1 . 1 . . . . 1 . . . . . . . . 1 . . . . . . 1 . . . . 1 . . . 1 . . . Fabricator Index 7 | . . . . . . . . . . . . . . . . . . . 1 . . . . . . . . 1 . . . . . . 2 . . . . 1 . 1 . . 1 . . Repair Station Index 4 | . . . . . . . . . . . . . . . . . . . 1 . 1 . . . . . . 1 . . . . . . . . . . . 1 . . . . . . . Recycling Unit Index 1 | . . . . . . . . . . . . . . . . . . . 1 . . . . . . . . . . . . . . . . . . . . . . . . . . . . Scanalyzer Index 1 | . . . . . . . . . . . . . . . . . . . 1 . . . . . . . . . . . . . . . . . . . . . . . . . . . . Garrison Index 1 | . . . . . . . . . . . . . . . . . . . 1 . . . . . . . . . . . . . . . . . . . . . . . . . . . . Alert Level 19 | . . . . . . . . . . . 2 . . 2 . . . . 1 . . . . . . . . 1 . . . . 2 . 3 . . . . 1 2 . 2 . 3 . . Unreport Threat 50 | . . . 2 . . . . . . . 4 . . 3 . . . . 1 . 3 . . . . 5 . 2 . . . 1 8 . 6 . . . . 2 4 . 3 3 3 . . Locate Traps 27 | . 1 . 1 . . . . . 1 . 1 4 . . . . . . 1 . 2 . . . . 2 . 3 . . . . 3 . 4 . . . . 2 1 . . 1 . . . Reprogram Traps 14 | . . . . . . . . . . . . . . . . . . . . . 2 . . . . . . . . . . . 6 . 5 . . . . 1 . . . . . . . Maintenance Status 1 | . . . . . . . . . . . . . . . . . . . . . . . . . . . . . . . . . . . . . . . . 1 . . . . . . . Patrol Status 10 | . . . . . . . . . . . . . . . . . . . 2 . 1 . . . . . . 1 . . . . 1 . 2 . . . . 1 . . 1 1 . . . Transport Status 1 | . . . . . . . . . . . . . . . . . . . . . . . . . . . . . . . . . . . 1 . . . . . . . . . . . . Recall Investigation 24 | . 1 . . . . . . . . . . . . 2 . . . . 3 . . . . . . . . 2 . . . . 6 . 5 . . . . . 2 . . . 3 . . Recall Extermination 20 | . . . . . . . . . . . . . . 3 . . . . 1 . . . . . . 1 . 2 . . . . 2 . 3 . . . . . 2 . 3 3 . . . Recall Reinforcements 9 | . . . . . . . . . . . . . . . . . . . . . . . . . . . . . . . . . 1 . 3 . . . . . 1 . . 3 1 . . Recall Assault 3 | . . . . . . . . . . . . . . . . . . . . . . . . . . . . . . . . . 2 . 1 . . . . . . . . . . . . Hauler Manifests 6 | . 1 . . . . . . . . . . . . . . . . . 1 . . . . . . . . 1 . . . . 1 . 1 . . . . 1 . . . . . . . Registered Components 1 | . 1 . . . . . . . . . . . . . . . . . . . . . . . . . . . . . . . . . . . . . . . . . . . . . . Zone Layout 16 | . 1 . 2 . . . . . . . . 1 . . . . . . . . . . . . . 2 . 1 . . . . 2 . 1 . . . . . 1 . 2 3 . . . Garrison Registry 2 | . . . . . . . . 1 . 1 . . . . . . . . . . . . . . . . . . . . . . . . . . . . . . . . . . . . . Derelict Proto ID Bank 1 | . . . . . 1 . . . . . . . . . . . . . . . . . . . . . . . . . . . . . . . . . . . . . . . . . . Gate Test 138-A 1 | . . . . . . . . . . . . . . . . . . . . . . . . . . . . . . . . . . . . . . . . . . . . . . . 1 Fabricator Hacks 76 | . . . . . . . . . . . . 1 . 12 . . . . 13 . 4 . . . . 3 . 8 . . . . 13 . 13 . . . . 3 2 . . . 4 . . Network Status 8 | . . . . . . . . . . . . 1 . 1 . . . . 1 . 1 . . . . 1 . . . . . . 1 . 1 . . . . 1 . . . . . . . Load Schematic 33 | . . . . . . . . . . . . . . 6 . . . . 5 . 1 . . . . 1 . 4 . . . . 6 . 6 . . . . 1 1 . . . 2 . . Build 35 | . . . . . . . . . . . . . . 5 . . . . 7 . 2 . . . . 1 . 4 . . . . 6 . 6 . . . . 1 1 . . . 2 . . Repair Station Hacks 122 | . . . 3 . . . . . 2 . 4 3 . . . . . . 14 . 8 . . . . 3 . 12 . . . . 19 . 20 . . . . . 10 . 14 4 6 . . Scan Component 62 | . . . 2 . . . . . 1 . 2 1 . . . . . . 7 . 4 . . . . 1 . 7 . . . . 9 . 11 . . . . . 5 . 7 2 3 . . Repair 57 | . . . 1 . . . . . 1 . 2 1 . . . . . . 7 . 4 . . . . 1 . 5 . . . . 9 . 9 . . . . . 5 . 7 2 3 . . Refit 3 | . . . . . . . . . . . . 1 . . . . . . . . . . . . . 1 . . . . . . 1 . . . . . . . . . . . . . . Recycling Unit Hacks 15 | . . . . . . . . . . . . . . 1 . . . . 2 . . . . . . 5 . 3 . . . . 3 . 1 . . . . . . . . . . . . Process 1 | . . . . . . . . . . . . . . . . . . . . . . . . . . 1 . . . . . . . . . . . . . . . . . . . . . Retrieve Components 14 | . . . . . . . . . . . . . . 1 . . . . 2 . . . . . . 4 . 3 . . . . 3 . 1 . . . . . . . . . . . . Scanalyzer 36 | . . . 6 . . . . . 4 . . . . . . . . . 1 . . . . . . 2 . 5 . . . . 2 . 2 . . . . . 4 . 5 5 . . . Insert Component 22 | . . . 2 . . . . . 2 . . . . . . . . . 1 . . . . . . 1 . 1 . . . . 1 . 1 . . . . . 3 . 5 5 . . . Analyze 14 | . . . 4 . . . . . 2 . . . . . . . . . . . . . . . . 1 . 4 . . . . 1 . 1 . . . . . 1 . . . . . . Garrison Access Hacks 29 | . . . . . . . 1 . 1 . . 2 . 2 . . . . 1 . 2 . . . . 1 . 3 . . . . 4 . 4 . . . . 1 1 1 . 1 4 . . Unlock Access 2 | . . . . . . . 1 . 1 . . . . . . . . . . . . . . . . . . . . . . . . . . . . . . . . . . . . . . Seal Access 27 | . . . . . . . . . . . . 2 . 2 . . . . 1 . 2 . . . . 1 . 3 . . . . 4 . 4 . . . . 1 1 1 . 1 4 . . Unauthorized Hacks 144 | . 4 . 1 . . . . 1 2 . 1 9 . 12 . . . . 14 . 7 . . . . 6 . 14 . . . 1 25 . 25 . . . . 5 8 . 3 3 3 . . Terminals 82 | . 2 . 1 . . . . 1 2 . 1 8 . 11 . . . . 6 . 3 . . . . 3 . 5 . . . 1 10 . 12 . . . . 2 6 . 3 3 2 . . Track 2 | . . . . . . . . . . . . . . 1 . . . . . . . . . . . . . . . . . . . . 1 . . . . . . . . . . . . Assimilate 32 | . . . . . . . . . . . . 1 . 5 . . . . 1 . 1 . . . . 2 . 2 . . . . 7 . 4 . . . . . 4 . 2 2 1 . . Botnet 38 | . 2 . . . . . . . 1 . 1 6 . 3 . . . . 4 . 2 . . . . 1 . 2 . . . . 3 . 6 . . . . 2 2 . 1 1 1 . . Operators 8 | . . . 1 . . . . . 1 . . 1 . 2 . . . . 1 . . . . . . . . 1 . . . . . . 1 . . . . . . . . . . . . Sabotage 1 | . . . . . . . . . . . . . . . . . . . . . . . . . . . . . . . . 1 . . . . . . . . . . . . . . . Override 1 | . . . . . . . . 1 . . . . . . . . . . . . . . . . . . . . . . . . . . . . . . . . . . . . . . . Fabricators 45 | . . . . . . . . . . . . 1 . 1 . . . . 4 . 4 . . . . 1 . 4 . . . . 13 . 11 . . . . 3 2 . . . 1 . . Report 5 | . . . . . . . . . . . . . . . . . . . 1 . 1 . . . . . . . . . . . 1 . 2 . . . . . . . . . . . . Prioritize 17 | . . . . . . . . . . . . . . 1 . . . . 1 . 1 . . . . 1 . 2 . . . . 5 . 3 . . . . 1 1 . . . 1 . . Liberate 16 | . . . . . . . . . . . . 1 . . . . . . 1 . 1 . . . . . . 1 . . . . 6 . 4 . . . . 1 1 . . . . . . Haulers 7 | . . . . . . . . . . . . . . . . . . . 1 . 1 . . . . . . 1 . . . . 1 . 2 . . . . 1 . . . . . . . Repair Stations . | . . . . . . . . . . . . . . . . . . . . . . . . . . . . . . . . . . . . . . . . . . . . . . . . Recycling Units 16 | . 2 . . . . . . . . . . . . . . . . . 4 . . . . . . 1 . 5 . . . . 2 . 2 . . . . . . . . . . . . Monitor 1 | . . . . . . . . . . . . . . . . . . . 1 . . . . . . . . . . . . . . . . . . . . . . . . . . . . Reject 7 | . . . . . . . . . . . . . . . . . . . 2 . . . . . . . . 3 . . . . 1 . 1 . . . . . . . . . . . . Recyclers 5 | . . . . . . . . . . . . . . . . . . . 1 . . . . . . 1 . 1 . . . . 1 . 1 . . . . . . . . . . . . Mask 1 | . . . . . . . . . . . . . . . . . . . . . . . . . . . . 1 . . . . . . . . . . . . . . . . . . . Tunnel 2 | . 2 . . . . . . . . . . . . . . . . . . . . . . . . . . . . . . . . . . . . . . . . . . . . . . Scanalyzers 1 | . . . . . . . . . . . . . . . . . . . . . . . . . . 1 . . . . . . . . . . . . . . . . . . . . . Extract 1 | . . . . . . . . . . . . . . . . . . . . . . . . . . 1 . . . . . . . . . . . . . . . . . . . . . Garrison Access . | . . . . . . . . . . . . . . . . . . . . . . . . . . . . . . . . . . . . . . . . . . . . . . . . Data Cores Recovered 3 | . . . 2 . . . . . . . . 1 . . . . . . . . . . . . . . . . . . . . . . . . . . . . . . . . . . . Used . | . . . . . . . . . . . . . . . . . . . . . . . . . . . . . . . . . . . . . . . . . . . . . . . . Hacking Detections 209 | . 9 . 12 . . . 1 1 6 3 6 8 . 21 . . . . 17 . 9 . . . . 14 . 19 9 . . 2 15 . 21 . . . . 3 8 2 5 7 10 1 . Full Trace Events 67 | . 3 . 2 . . . . 1 1 3 2 2 . 12 . . . . 8 . 2 . . . . 1 . 6 2 . . . 7 . 7 . . . . 1 2 1 . 2 2 . . Feedback Events 10 | . . . . . . . . 1 1 . . . . 4 . . . . 2 . 1 . . . . . . . 1 . . . . . . . . . . . . . . . . . . Corruption 6 | . . . . . . . . 1 1 . . . . 2 . . . . 1 . . . . . . . . . 1 . . . . . . . . . . . . . . . . . . Hackware Fried 4 | . . . . . . . . . . . . . . 2 . . . . 1 . 1 . . . . . . . . . . . . . . . . . . . . . . . . . . Feedback Blocked 1 | . . . . . . . . . . . . . . . . . . . . . . . . . . . . . . . . . . . . . . . . . . 1 . . . . . Robot Schematics Acquired 11 | . . . . . . . . . . . . . . 1 . . 4 . . . 1 . . 2 . . . . . . . . . . . . . . . . 1 . . 2 . . . Robots Built 7 | . . . . . . . . . . . . . . . . . . . 6 . 1 . . . . . . . . . . . . . . . . . . . . . . . . . . Authchips . | . . . . . . . . . . . . . . . . . . . . . . . . . . . . . . . . . . . . . . . . . . . . . . . . Time 224 | . . . . . . . . . . . . . . . . . . . 184 . 40 . . . . . . . . . . . . . . . . . . . . . . . . . . Total Robot Build Rating 27 | . . . . . . . . . . . . . . . . . . . 26 . 1 . . . . . . . . . . . . . . . . . . . . . . . . . . Part Schematics Acquired 65 | . 1 . 2 . . . . . 2 . . 1 . 2 . . 9 . 1 . 3 . . 13 . 4 . 4 . . . . 5 . 3 . . . . . 6 . . 9 . . . Parts Built 35 | . . . . . . . . . . . . . . 5 . . . . 6 . 1 . . . . 2 . 4 . . . . 6 . 6 . . . . 1 1 . . . 3 . . Authchips . | . . . . . . . . . . . . . . . . . . . . . . . . . . . . . . . . . . . . . . . . . . . . . . . . Time 2194 | . . . . . . . . . . . . . . 351 . . . . 341 . 67 . . . . 26 . 271 . . . . 500 . 510 . . . . 25 34 . . . 69 . . Total Part Build Rating 217 | . . . . . . . . . . . . . . 22 . . . . 35 . 4 . . . . 12 . 20 . . . . 44 . 48 . . . . 5 8 . . . 19 . . Parts Repaired 57 | . . . 1 . . . . . 1 . 2 1 . . . . . . 7 . 4 . . . . 1 . 5 . . . . 9 . 9 . . . . . 5 . 7 2 3 . . Time 3124 | . . . 38 . . . . . 32 . 146 19 . . . . . . 330 . 235 . . . . 70 . 270 . . . . 465 . 491 . . . . . 512 . 242 188 86 . . Parts Recycled . | . . . . . . . . . . . . . . . . . . . . . . . . . . . . . . . . . . . . . . . . . . . . . . . . Recycled Matter . | . . . . . . . . . . . . . . . . . . . . . . . . . . . . . . . . . . . . . . . . . . . . . . . . Retrieved Matter . | . . . . . . . . . . . . . . . . . . . . . . . . . . . . . . . . . . . . . . . . . . . . . . . . Retrieved Components 31 | . . . . . . . . . . . . . . 1 . . . . 5 . . . . . . 6 . 12 . . . . 6 . 1 . . . . . . . . . . . . Parts Scanalyzed 9 | . . . 2 . . . . . 2 . . . . . . . . . . . . . . . . 1 . 1 . . . . 1 . 1 . . . . . 1 . . . . . . Part Schematics Acquired 8 | . . . 2 . . . . . 2 . . . . . . . . . . . . . . . . . . 1 . . . . 1 . 1 . . . . . 1 . . . . . . Parts Damaged 2 | . . . . . . . . . . . . . . . . . . . . . . . . . . . . 1 . . . . 1 . . . . . . . . . . . . . . Bothacking | -11 -10 -10 -9 -9 -9 -8 -8 -8 -8 -8 -8 -7 -7 -7 -7 -7 -7 -6 -6 -6 -6 -6 -6 -6 -5 -5 -5 -5 -5 -5 -5 -5 -4 -4 -4 -4 -4 -4 -3 -3 -3 -2 -2 -2 -1 -1 -1 ------------ Run | Yrd Mat Min Mat Min Exi Min Mat Gar Mat Gar Mat Fac Was Fac Low Low Dat Pro Fac Was Fac Low Low Zio Pro Fac Was Fac Ext Cet Arc Hub Fac Was Fac Upp Upp War Pro Res Tes Res Qua Sec Acc Com Ac0 Used RIF Installer . | . . . . . . . . . . . . . . . . . . . . . . . . . . . . . . . . . . . . . . . . . . . . . . . . Robots Hacked . | . . . . . . . . . . . . . . . . . . . . . . . . . . . . . . . . . . . . . . . . . . . . . . . . Non-combat . | . . . . . . . . . . . . . . . . . . . . . . . . . . . . . . . . . . . . . . . . . . . . . . . . Combat . | . . . . . . . . . . . . . . . . . . . . . . . . . . . . . . . . . . . . . . . . . . . . . . . . Robot Hacks Applied . | . . . . . . . . . . . . . . . . . . . . . . . . . . . . . . . . . . . . . . . . . . . . . . . . Relay Couplers Released 10 | . . . . . . . . 3 . 3 . . . . . . . . 3 . . . . . . . . . . . . 1 . . . . . . . . . . . . . . . Machine Destruction 4 | . . . . . . . . 3 . . . . . . . . . . . . . . . . . . . . . . . 1 . . . . . . . . . . . . . . . Programmers 6 | . . . . . . . . . . 3 . . . . . . . . 3 . . . . . . . . . . . . . . . . . . . . . . . . . . . . Fabnet Peak Effective % . | . . . . . . . . . . . . . . . . . . . . . . . . . . . . . . . . . . . . . . . . . . . . . . . . Robots Rewired 11 | . . . . . . . . . . 3 . . . . . . . . . . . . . . . . . . 2 . . . . . . . . 5 . . 1 . . . . . . Allies Hacked 3 | . . . . . . . . . . . . . . 2 . . . . . . . . . . . . . . . . . . . . 1 . . . . . . . . . . . . Hacks Repelled . | . . . . . . . . . . . . . . . . . . . . . . . . . . . . . . . . . . . . . . . . . . . . . . . . Allies | -11 -10 -10 -9 -9 -9 -8 -8 -8 -8 -8 -8 -7 -7 -7 -7 -7 -7 -6 -6 -6 -6 -6 -6 -6 -5 -5 -5 -5 -5 -5 -5 -5 -4 -4 -4 -4 -4 -4 -3 -3 -3 -2 -2 -2 -1 -1 -1 -------- Run | Yrd Mat Min Mat Min Exi Min Mat Gar Mat Gar Mat Fac Was Fac Low Low Dat Pro Fac Was Fac Low Low Zio Pro Fac Was Fac Ext Cet Arc Hub Fac Was Fac Upp Upp War Pro Res Tes Res Qua Sec Acc Com Ac0 Total Allies 69 | . . 2 . . . . . . 1 3 . 4 . 3 . . . . 7 . 2 . . . . 1 . 2 12 . . . 8 . 10 . . 5 . . 5 . 2 1 1 . . Largest Group 6 | . . 2 2 . . . . . 1 3 . 4 . 2 . . . . 5 . 1 . . . . 1 . 1 6 1 . . 3 . 3 . . 5 . . 3 1 1 1 1 . . Highest-Rated Group 321 | . . 46 46 . . . . . 18 48 . 58 . 36 . . . . 82 . 10 . . . . 26 . 26 321 31 . . 118 . 141 . . 265 . . 171 26 45 45 45 . . Highest-Rated Ally 159 | . . 31 31 . . . . . 18 16 . 16 . 26 . . . . 41 . 10 . . . . 26 . 26 159 31 . . 54 . 47 . . 65 . . 124 26 45 45 45 . . Total Orders 8 | . . . . . . . . . 1 1 . . . . . . . . . . . . . . . . . . . . . . 3 . . . . . . . 3 . . . . . . STAY 4 | . . . . . . . . . . . . . . . . . . . . . . . . . . . . . . . . . 2 . . . . . . . 2 . . . . . . FOLLOW 2 | . . . . . . . . . . . . . . . . . . . . . . . . . . . . . . . . . 1 . . . . . . . 1 . . . . . . RETURN 2 | . . . . . . . . . 1 1 . . . . . . . . . . . . . . . . . . . . . . . . . . . . . . . . . . . . . Ally Attacks 261 | . . 1 42 . . . . . 16 40 . 5 . . . . . . 14 . . . . . . . . . 64 7 . . 1 . 14 . . 18 . . 39 . . . . . . Total Damage 9053 | . . 22 608 . . . . . 61 475 . 82 . . . . . . 405 . . . . . . . . . 1770 132 . . 43 . 367 . . 635 . . 4453 . . . . . . Kills 61 | . . 1 5 . . . . . 2 7 . . . . . . . . 4 . . . . . . . . . 12 . . . . . 1 . . 3 . . 26 . . . . . . Allies Corrupted 2 | . . . . . . . . . . . . . . . . . . . . . . . . . . . . . . . . . . . 1 . . . . . . . . 1 . . . Allies Melted . | . . . . . . . . . . . . . . . . . . . . . . . . . . . . . . . . . . . . . . . . . . . . . . . . Intel | -11 -10 -10 -9 -9 -9 -8 -8 -8 -8 -8 -8 -7 -7 -7 -7 -7 -7 -6 -6 -6 -6 -6 -6 -6 -5 -5 -5 -5 -5 -5 -5 -5 -4 -4 -4 -4 -4 -4 -3 -3 -3 -2 -2 -2 -1 -1 -1 ------- Run | Yrd Mat Min Mat Min Exi Min Mat Gar Mat Gar Mat Fac Was Fac Low Low Dat Pro Fac Was Fac Low Low Zio Pro Fac Was Fac Ext Cet Arc Hub Fac Was Fac Upp Upp War Pro Res Tes Res Qua Sec Acc Com Ac0 Robot Analysis Total 16 | . 3 . 2 . . . . . . . . 2 . . . . . . . . . . . . . 2 . . . . . . 1 . 2 . . . . . 1 1 2 . . . . Derelict Logs Recovered 16 | . . 1 . 1 . . . . . . . . . . 2 . . 1 . . . 1 1 2 2 . . . . . . . . . . 3 2 . . . . . . . . . . Drone Launches 21 | . . . . . . . . . 16 5 . . . . . . . . . . . . . . . . . . . . . . . . . . . . . . . . . . . . . Drone Recoveries 20 | . . . . . . . . . 15 5 . . . . . . . . . . . . . . . . . . . . . . . . . . . . . . . . . . . . . Exploration | -11 -10 -10 -9 -9 -9 -8 -8 -8 -8 -8 -8 -7 -7 -7 -7 -7 -7 -6 -6 -6 -6 -6 -6 -6 -5 -5 -5 -5 -5 -5 -5 -5 -4 -4 -4 -4 -4 -4 -3 -3 -3 -2 -2 -2 -1 -1 -1 ------------- Run | Yrd Mat Min Mat Min Exi Min Mat Gar Mat Gar Mat Fac Was Fac Low Low Dat Pro Fac Was Fac Low Low Zio Pro Fac Was Fac Ext Cet Arc Hub Fac Was Fac Upp Upp War Pro Res Tes Res Qua Sec Acc Com Ac0 Turns Passed 42897 | 75 1063 732 2047 1059 505 104 468 588 2552 1894 2661 1005 50 3059 288 472 62 155 1784 62 1150 208 44 211 78 1061 24 3059 2058 272 82 1238 2188 26 2778 155 100 315 203 480 1023 761 899 1986 593 284 936 Spaces Moved 62686 | 41 569 383 946 430 220 33 161 211 831 697 768 1606 95 5258 705 895 116 451 3605 165 2254 730 172 708 272 2603 71 5670 829 92 36 415 4840 121 6819 552 347 822 547 1088 1407 2328 2141 4241 1857 483 3055 Core 13 | 3 . . . . . . . . . . . . . 1 . . . . . . . . . . . . . . . . . . . . . . . 1 . . 8 . . . . . . Treads 6831 | 38 569 383 946 430 220 33 161 211 831 697 768 15 . . . . . . . . . . . . . . . 157 829 92 36 415 . . . . . . . . . . . . . . . Legs . | . . . . . . . . . . . . . . . . . . . . . . . . . . . . . . . . . . . . . . . . . . . . . . . . Wheels . | . . . . . . . . . . . . . . . . . . . . . . . . . . . . . . . . . . . . . . . . . . . . . . . . Hover . | . . . . . . . . . . . . . . . . . . . . . . . . . . . . . . . . . . . . . . . . . . . . . . . . Flight 55838 | . . . . . . . . . . . . 1591 95 5257 705 895 116 451 3605 165 2254 730 172 708 272 2603 71 5513 . . . . 4840 121 6819 552 347 821 547 1088 1399 2328 2141 4237 1857 483 3055 Fastest Speed 5 | 50 160 160 145 225 225 225 225 225 225 225 230 50 50 26 14 26 14 14 14 26 26 26 14 26 14 23 5 5 232 232 232 232 14 11 5 20 20 20 17 6 17 17 6 5 6 6 6 Average Speed 45 | 151 160 160 176 225 225 225 225 225 225 226 290 52 50 48 25 26 25 25 26 26 31 26 25 26 25 23 21 29 232 232 232 232 20 19 20 20 20 20 19 18 19 19 17 16 15 15 18 Slowest Speed 400 | 160 160 160 240 225 225 225 225 225 225 230 400 323 50 150 26 26 26 26 94 26 91 26 26 26 26 26 23 353 232 232 232 232 89 20 23 20 20 150 20 20 150 20 20 86 17 81 90 Overloaded Moves 723 | . . . . . . . . . . . . . . . 14 . 6 26 56 . . . 5 . 8 . 4 5 . . . . 18 6 21 . . . 4 10 . . 12 60 98 27 343 Propulsion Burnouts . | . . . . . . . . . . . . . . . . . . . . . . . . . . . . . . . . . . . . . . . . . . . . . . . . Robots Hopped 165 | . . . . . . . . . . . . 3 . 12 2 . . . 8 . 9 . . . . 20 . 16 . . . . 15 . 25 . . . . 4 4 15 4 11 17 . . Cave-ins Triggered 1 | . . . . . . . . . . . . . . 1 . . . . . . . . . . . . . . . . . . . . . . . . . . . . . . . . . Teleports 4 | . . . . . . . . . . . . . . . . . . . . . . . . . . . . . . . . . . . . . . . . . . . 2 . . 1 1 Spacefolds 2 | . . . . . . . . . . . . . . . . . . . . . . . . . . . . . . . . . . . . . . . . . . . . 2 . . . Exploration Rate (%) 66 | 5 96 97 97 94 60 10 13 41 71 67 72 58 72 86 80 80 80 64 54 83 45 82 36 79 51 59 70 77 86 53 60 36 87 91 92 77 63 93 63 16 91 55 96 87 44 8 93 Regions Visited 47 Branch Regions 25 Pre-discovered Areas 8 | . 2 . . . 1 . . . . . . . . . 3 . 1 . . . . . . . 1 . . . . . . . . . . . . . . . . . . . . . . Known Exits Taken 31 | . . . 1 . . . 1 . 1 . 1 . . 1 1 1 1 1 . . 1 1 1 1 1 . . 1 1 1 1 1 . . 1 1 1 1 1 1 1 1 1 1 1 1 . Unknown Exits Taken 6 | 1 1 1 . 1 1 1 . . . . . . . . . . . . . . . . . . . . . . . . . . . . . . . . . . . . . . . . . Scrap Searched 27 | . . 1 . 2 . . . . . . . . . . 3 2 . 1 . . . 5 1 3 2 . . . . . . . . . . 3 3 . 1 . . . . . . . . Spaces Dug 588 | . . . 1 . . . . . . . 11 22 . 68 2 15 1 3 47 . 20 1 . . 1 48 . 76 . . . 1 47 . 68 5 4 8 5 10 7 17 12 56 26 1 5 Terrain Destroyed 1415 | . 11 . 17 19 . . . 8 28 12 18 40 . 108 2 15 1 3 50 . 20 1 . . 21 77 . 131 1 3 . 211 148 . 149 5 4 85 5 22 7 17 12 56 26 1 81 Melee 505 | . . . . . . . . . . . . 22 . 68 2 15 1 3 38 . 20 1 . . 1 33 . 62 . . . . 47 . 66 4 3 8 2 10 7 17 12 31 26 1 5 Projectile 97 | . . . 1 . . . . . 1 . . . . . . . . . 12 . . . . . . . . 8 1 3 . 41 . . 2 1 1 . 3 . . . . 1 . . 22 AOE 813 | . 11 . 16 19 . . . 8 27 12 18 18 . 40 . . . . . . . . . . 20 44 . 61 . . . 170 101 . 81 . . 77 . 12 . . . 24 . . 54 Terrain Rammed . | . . . . . . . . . . . . . . . . . . . . . . . . . . . . . . . . . . . . . . . . . . . . . . . . Walls Destroyed . | . . . . . . . . . . . . . . . . . . . . . . . . . . . . . . . . . . . . . . . . . . . . . . . . Machines Disabled . | . . . . . . . . . . . . . . . . . . . . . . . . . . . . . . . . . . . . . . . . . . . . . . . . Actions | -11 -10 -10 -9 -9 -9 -8 -8 -8 -8 -8 -8 -7 -7 -7 -7 -7 -7 -6 -6 -6 -6 -6 -6 -6 -5 -5 -5 -5 -5 -5 -5 -5 -4 -4 -4 -4 -4 -4 -3 -3 -3 -2 -2 -2 -1 -1 -1 --------- Run | Yrd Mat Min Mat Min Exi Min Mat Gar Mat Gar Mat Fac Was Fac Low Low Dat Pro Fac Was Fac Low Low Zio Pro Fac Was Fac Ext Cet Arc Hub Fac Was Fac Upp Upp War Pro Res Tes Res Qua Sec Acc Com Ac0 Total 73773 | 50 652 483 1160 472 236 56 214 263 1370 889 1059 1723 96 5593 804 1103 128 484 4298 183 2616 745 171 733 275 2941 78 6856 913 124 35 568 5874 122 7992 587 370 939 634 1310 2105 2531 2609 5270 2060 670 3329 Wait 8082 | . 25 86 70 7 . 18 4 4 376 27 173 37 . 189 100 190 . 28 573 19 279 3 . 15 . 254 5 985 29 7 . 85 804 1 945 23 17 62 80 177 635 144 413 855 161 144 33 Move 62329 | 40 568 382 945 429 219 32 161 210 831 694 767 1600 94 5234 701 894 115 450 3589 164 2236 729 171 707 271 2563 70 5639 828 91 35 414 4811 120 6769 551 346 821 546 1079 1398 2303 2132 4218 1826 482 3054 Hop 146 | . . . . . . . . . . . . 3 . 11 1 . . . 8 . 8 . . . . 20 . 14 . . . . 14 . 24 . . . . 4 4 9 4 9 13 . . Pick Up 192 | 3 12 1 17 3 5 . 5 . 10 2 3 6 . 7 . . 1 . 3 . 2 . . 1 . 5 1 22 4 3 . 1 12 1 12 . . 3 . 3 4 4 8 11 2 8 7 Fast Attach 203 | 6 1 . 4 1 . . 1 . 5 4 4 2 1 13 . 2 . 2 12 . 4 6 . 4 . 5 1 9 4 4 . 2 19 . 16 . . 2 . 3 18 7 12 15 5 . 9 Attach 139 | . 1 . 3 . . 2 4 2 3 5 6 7 . 7 . . 1 . 1 . 2 . . . . 1 . 11 1 . . 5 20 . 9 2 1 3 2 4 1 2 2 11 1 7 12 Detach 114 | . . . 1 . . . . . 3 3 . 9 . 6 . . 1 . 1 . 2 . . . . 1 . 15 3 3 . . 20 . 8 3 1 2 1 3 2 . . 10 2 4 10 Swap 168 | 1 3 3 17 4 1 . 5 2 6 7 4 2 . 2 . . . . 8 . 1 . . . 2 5 . 6 3 1 . 4 17 . 15 2 . 2 . 3 6 2 1 20 6 5 2 Drop 226 | . 4 . 15 2 11 . 5 . 13 . . 21 1 11 . 2 . 1 3 . 1 6 . 5 . 6 1 15 . . . . 26 . 16 . . 5 . 1 8 9 9 13 1 7 8 Fire 895 | . 34 8 82 24 . 4 29 42 114 101 82 2 . 7 . . . . 25 . . . . . 1 5 . 26 17 14 . 56 16 . 14 1 1 10 3 2 . . . 1 . . 174 Melee 958 | . . . . . . . . . . 4 . 34 . 106 2 15 10 3 46 . 36 1 . 1 1 58 . 97 3 . . . 92 . 105 5 4 14 2 31 26 51 28 107 43 13 20 Ram . | . . . . . . . . . . . . . . . . . . . . . . . . . . . . . . . . . . . . . . . . . . . . . . . . Kick . | . . . . . . . . . . . . . . . . . . . . . . . . . . . . . . . . . . . . . . . . . . . . . . . . Crush 53 | . 4 3 6 2 . . . . 9 1 20 . . . . . . . . . . . . . . . . 1 5 1 . 1 . . . . . . . . . . . . . . . Escape Stasis 135 | . . . . . . . . 3 . 10 . . . . . . . . 29 . 45 . . . . 18 . 16 2 . . . . . 12 . . . . . . . . . . . . Rewire 63 | . . . . . . . . . . 31 . . . . . . . . . . . . . . . . . . 14 . . . . . . . . 15 . . 3 . . . . . . Trap 70 | . . . . . . . . . . . . . . . . . . . . . . . . . . . . . . . . . 23 . 47 . . . . . . . . . . . . Miscellaneous . | . . . . . . . . . . . . . . . . . . . . . . . . . . . . . . . . . . . . . . . . . . . . . . . . Route ------- -11/Scrapyard -10/Materials (discovered 4 exits: *Mat x3 / *Min) -10/Mines (discovered 2 exits: *Mat x2) -9/Materials (discovered 4 exits: *Mat x3 / *Min) -9/Mines (discovered 3 exits: *Mat x2 / *Exi) -9/Exiles -8/Mines -8/Materials (discovered 2 exits: Fac / Gar) -8/Garrison (discovered 3 exits: *Mat x3) -8/Materials (discovered 2 exits: *Fac / Gar) -8/Garrison (discovered 4 exits: *Mat x4) -8/Materials (discovered 2 exits: *Fac x2) -7/Factory (discovered 3 exits: *Fac / *Sto / *Low) -7/Waste -7/Factory (discovered 6 exits: *Fac x3 / *Sto / *Low x2) -7/Lower Caves -7/Lower Caves (discovered 2 exits: *Fac / *Dat) -7/Data Miner -6/Proximity Caves -6/Factory (discovered 6 exits: *Fac x4 / *Low x2) -6/Waste -6/Factory (discovered 3 exits: *Fac x2 / *Low) -6/Lower Caves -6/Lower Caves -6/Zion (discovered 2 exits: Dee / *Pro) -5/Proximity Caves -5/Factory (discovered 6 exits: *Fac x4 / *Upp x2) -5/Waste -5/Factory (discovered 7 exits: *Fac x3 / *Upp x2 / *Ext x2) -5/Extension (discovered 2 exits: *Fac / *Cet) -5/Cetus -5/Archives -5/Hub_04(d) (discovered 2 exits: *Fac x2) -4/Factory (discovered 4 exits: *Res x2 / *Upp x2) -4/Waste -4/Factory (discovered 5 exits: *Res x3 / *Upp x2) -4/Upper Caves -4/Upper Caves (discovered 2 exits: *Res / *War) -4/Warlord -3/Proximity Caves -3/Research (discovered 5 exits: *Res x2 / Arm / *Tes x2) -3/Testing -2/Research (discovered 3 exits: *Acc x2 / *Qua) -2/Quarantine (discovered 2 exits: *Acc / *Sec) -2/Section 7 -1/Access (discovered 2 exits: Sur / *Com) -1/Command -1/Access_0 To Epsilon Eridani History --------- Turn | Location | Event 23 | -11/Scrapyard | Discovered new exit (range 15) 76 | -11/Scrapyard | Entered Materials 211 | -10/Materials | Central database locked down 247 | -10/Materials | Discovered new exit (range 12) 296 | -10/Materials | Discovered new exit (range 20) 317 | -10/Materials | Build established: Mutant 442 | -10/Materials | Discovered new exit (range 6) 834 | -10/Materials | Discovered new exit (range 5) 1139 | -10/Materials | Entered Mines 1205 | -10/Mines | Met a Derelict bent on vengeance 1398 | -10/Mines | Found the Drone Emporium 1404 | -10/Mines | Found Prototype Device 1405 | -10/Mines | Identified Splice Drone Bay 1448 | -10/Mines | Learned 2 Materials zone layouts 1479 | -10/Mines | Assembled infested the area 1573 | -10/Mines | Discovered new exit (range 6) 1762 | -10/Mines | Discovered new exit (range 5) 1871 | -10/Mines | Entered Materials 1871 | -9/Materials | Accompanied by 2 allies 1871 | -9/Materials | Evolved 2 slots: Propulsion x1, Utility x1 1876 | -9/Materials | Led the pair of lost Derelicts to an unsafe place 2198 | -9/Materials | Central database locked down 2395 | -9/Materials | Identified exit to Mines 2600 | -9/Materials | Discovered new exit (range 16) 2735 | -9/Materials | Repaired Adv. Treads 3043 | -9/Materials | Discovered new exit (range 4) 3555 | -9/Materials | Discovered new exit (range 5) 3918 | -9/Materials | Entered Mines 3980 | -9/Mines | Discovered new exit (range 9) 4358 | -9/Mines | Found a damaged Exp. Sensor Array with a note attached 4363 | -9/Mines | Found Prototype Device 4364 | -9/Mines | Identified Exp. Sensor Array 4432 | -9/Mines | Received a Rocket Launcher from a helpful Derelict 4478 | -9/Mines | Core integrity fell below 50% 4524 | -9/Mines | Discovered new exit (range 12) 4704 | -9/Mines | Deemed a non-threat by the Exiles lab entrance 4704 | -9/Mines | Discovered new exit (range 5) 4842 | -9/Mines | Learned 2 Materials zone layouts 4977 | -9/Mines | Entered Exiles 5040 | -9/Exiles | Met 8R-AWN 5080 | -9/Exiles | Met EX-HEX 5141 | -9/Exiles | Met EX-BIN 5177 | -9/Exiles | Aligned with FarCom system 5179 | -9/Exiles | Given EX-Vault access code 5231 | -9/Exiles | Opened EX-Vault 5249 | -9/Exiles | Found Flying Fortress v7 5259 | -9/Exiles | Found Cloak of Protection 5272 | -9/Exiles | Found Firepult 5318 | -9/Exiles | Warned to stay clear of 0b10 Research branches 5383 | -9/Exiles | Met EX-DEC 5392 | -9/Exiles | Learned location of Zion (-6) 5457 | -9/Exiles | Discovered new exit (range 14) 5482 | -9/Exiles | Stole three prototypes: Flying Fortress v7, Cloak of Protection, Firepult 5482 | -9/Exiles | Entered Mines 5544 | -8/Mines | Discovered new exit (range 9) 5586 | -8/Mines | Entered Materials 5586 | -8/Materials | Evolved 2 slots: Utility x2 5587 | -8/Materials | Identified exit to Factory 5933 | -8/Materials | Garrison activated, responded to threat 6054 | -8/Materials | Identified exit to Garrison 6054 | -8/Materials | Entered Garrison 6064 | -8/Garrison | Triggered checkpoint 6108 | -8/Garrison | Triggered checkpoint 6168 | -8/Garrison | Garrison Relay disabled 6204 | -8/Garrison | Triggered checkpoint 6227 | -8/Garrison | Triggered checkpoint 6236 | -8/Garrison | Triggered checkpoint 6274 | -8/Garrison | Destroyed 11 combat bots 6358 | -8/Garrison | Discovered new exit (range 37) 6358 | -8/Garrison | Discovered new exit (range 14) 6358 | -8/Garrison | Discovered new exit (range 63) 6606 | -8/Garrison | Identified exit to Materials 6642 | -8/Garrison | Entered Materials 7113 | -8/Materials | Discovered exit to Factory (range 14) 7403 | -8/Materials | Repaired Hrd. Light Armor Plating 7931 | -8/Materials | Garrison activated, responded to threat 8631 | -8/Materials | Garrison activated, responded to threat 9072 | -8/Materials | Garrison activated, responded to threat 9194 | -8/Materials | Identified exit to Garrison 9194 | -8/Materials | Entered Garrison 9256 | -8/Garrison | Triggered checkpoint 9340 | -8/Garrison | Discovered new exit (range 6) 9642 | -8/Garrison | Triggered checkpoint 9781 | -8/Garrison | Discovered new exit (range 8) 9855 | -8/Garrison | Build established: Hacker-Mutant 9859 | -8/Garrison | Core integrity fell below 50% 9860 | -8/Garrison | Triggered checkpoint 9996 | -8/Garrison | Triggered checkpoint 10198 | -8/Garrison | Discovered new exit (range 14) 10394 | -8/Garrison | Triggered checkpoint 10516 | -8/Garrison | Discovered new exit (range 10) 10534 | -8/Garrison | Discovered new exit (range 9) 10534 | -8/Garrison | Discovered new exit (range 56) 10534 | -8/Garrison | Discovered new exit (range 76) 10534 | -8/Garrison | Discovered new exit (range 32) 10608 | -8/Garrison | Attempted to access garrison exit controls, blocked by remote lockdown 10708 | -8/Garrison | Triggered checkpoint 10878 | -8/Garrison | Attempted to access garrison exit controls, blocked by remote lockdown 11088 | -8/Garrison | Entered Materials 11452 | -8/Materials | Discovered exit to Factory (range 14) 12628 | -8/Materials | Repaired Exp. Sensor Array 12836 | -8/Materials | Lost 3 parts (2u1w) 13274 | -8/Materials | Build established: Mutant 13533 | -8/Materials | Repaired Lgt. Deuterium Engine 13663 | -8/Materials | Discovered exit to Factory (range 16) 13749 | -8/Materials | Entered Factory 13749 | -7/Factory | Evolved 2 slots: Propulsion x1, Utility x1 13751 | -7/Factory | FarCom data flow suspended 13878 | -7/Factory | Repaired Katana 13948 | -7/Factory | Discovered new exit (range 10) 13953 | -7/Factory | Identified exit to Factory 14092 | -7/Factory | Build established: Hacker-Scout 14265 | -7/Factory | Discovered new exit (range 12) 14346 | -7/Factory | Discovered new exit (range 11) 14423 | -7/Factory | Lost 3 allies 14564 | -7/Factory | Central database locked down 14754 | -7/Factory | Manually triggered Chute Trap 14754 | -7/Factory | Sucked down chute 14754 | -7/Factory | Entered Waste 14769 | -7/Waste | EMP discharged 14771 | -7/Waste | Spotted C-40 Crusher 14779 | -7/Waste | Spotted C-40 Crusher 14789 | -7/Waste | Spotted C-40 Crusher 14789 | -7/Waste | Spotted C-40 Crusher 14789 | -7/Waste | Spotted C-40 Crusher 14790 | -7/Waste | Spotted C-40 Crusher 14798 | -7/Waste | Discovered new exit (range 12) 14803 | -7/Waste | Identified exit to Factory 14804 | -7/Waste | Entered Factory 14984 | -7/Factory | Hacking Suite fried by hacking feedback 15111 | -7/Factory | System Shield fried by hacking feedback 15617 | -7/Factory | Discovered new exit (range 12) 15914 | -7/Factory | Identified exit to Storage 15914 | -7/Factory | Identified exit to Lower Caves 15944 | -7/Factory | Discovered exit to Factory (range 11) 16402 | -7/Factory | Discovered exit to Factory (range 4) 16588 | -7/Factory | Fabricated Cld. VTOL Module? 16632 | -7/Factory | Fabricated Cld. VTOL Module? 16678 | -7/Factory | Fabricated Cld. VTOL Module? 16869 | -7/Factory | Fabricated Cld. VTOL Module? 17151 | -7/Factory | Fabricated Adv. Hacking Suite? 17447 | -7/Factory | Crushed by falling debris 17819 | -7/Factory | Discovered exit to Factory (range 6) 17863 | -7/Factory | Entered Lower Caves 17891 | -7/Lower Caves | Attacked by a faux Warlord 17903 | -7/Lower Caves | Met a Warlord Commander 17904 | -7/Lower Caves | Learned location of Warlord (-4) 17905 | -7/Lower Caves | Warlord Commander delivered Encrypted Comm Array 17925 | -7/Lower Caves | Learned location of Armory (-3) 17925 | -7/Lower Caves | Learned Armory emergency access door positions 17932 | -7/Lower Caves | Learned location of Extension (-5) 17971 | -7/Lower Caves | Encountered a Warlord checkpoint 17979 | -7/Lower Caves | Learned location of 1 exit from Proximity Caves 18121 | -7/Lower Caves | Discovered new exit (range 15) 18151 | -7/Lower Caves | Identified exit to Lower Caves 18151 | -7/Lower Caves | Entered another Lower Caves area 18156 | -7/Lower Caves | Discovered exit to Factory (range 9) 18616 | -7/Lower Caves | Spotted O3-BZG(f) 18617 | -7/Lower Caves | Spotted Z7-4Y1(f) 18620 | -7/Lower Caves | Encountered a Master Thief 18620 | -7/Lower Caves | Encountered a Master Thief 18621 | -7/Lower Caves | Discovered new exit (range 9) 18623 | -7/Lower Caves | Identified exit to Data Miner 18623 | -7/Lower Caves | Entered Data Miner 18623 | -7/Data Miner | Discovered new exit (range 6) 18628 | -7/Data Miner | Met Data Miner 18633 | -7/Data Miner | Learned location of Section 7 (-2) 18633 | -7/Data Miner | Acquired the access code to Warlord's prototype stash 18638 | -7/Data Miner | Received God Mode back door access code from Data Miner 18640 | -7/Data Miner | Destroyed Data Miner 18643 | -7/Data Miner | Data Conduit disabled 18648 | -7/Data Miner | Found Prototype Hackware 18685 | -7/Data Miner | Identified exit to Proximity Caves 18685 | -7/Data Miner | Entered Proximity Caves 18738 | -6/Proximity Caves | Spotter reported a threat 18761 | -6/Proximity Caves | Found Alien Artifact 18761 | -6/Proximity Caves | Identified Core Expander 18761 | -6/Proximity Caves | Installed Core Expander, added new Weapon slot 18775 | -6/Proximity Caves | Attracted the attention of an 0b10 checkpoint 18792 | -6/Proximity Caves | Spotter reported a threat 18827 | -6/Proximity Caves | Learned 4 Factory zone layouts 18840 | -6/Proximity Caves | Entered Factory 18840 | -6/Factory | Evolved 2 slots: Utility x2 18869 | -6/Factory | Identified System Mapper 18948 | -6/Factory | Repaired Exp. Sensor Array 18972 | -6/Factory | Repaired Greatsword 19058 | -6/Factory | Repaired Structural Scanner 19190 | -6/Factory | Search patrols dispatched 19207 | -6/Factory | Identified exit to Lower Caves 19328 | -6/Factory | Discovered new exit (range 13) 19350 | -6/Factory | Fabricated Wave Gun? 19497 | -6/Factory | Fabricated S-27 Virus (x4) 19573 | -6/Factory | Fabricated Exp. Utility Shielding (x1) 19604 | -6/Factory | Discovered new exit (range 8) 19606 | -6/Factory | Identified exit to Factory 19707 | -6/Factory | Lost 3 allies 19781 | -6/Factory | Repaired Cld. VTOL Module 19882 | -6/Factory | Cargo convoy interrupted 20004 | -6/Factory | Fabricated H-66 Slayer (x2) 20006 | -6/Factory | System Mapper fried by hacking feedback 20093 | -6/Factory | Fabricated Adv. Hacking Suite (x1) 20105 | -6/Factory | Fabricated Adv. Hacking Suite (x1) 20202 | -6/Factory | Fabricated Adv. Hacking Suite (x1) 20256 | -6/Factory | Repaired Cld. VTOL Module? 20542 | -6/Factory | Repaired Mic. Nuclear Core 20588 | -6/Factory | Repaired Greatsword? 20624 | -6/Factory | Manually triggered Chute Trap 20624 | -6/Factory | Sucked down chute 20624 | -6/Factory | Entered Waste 20629 | -6/Waste | Spotted C-40 Crusher 20633 | -6/Waste | Spotted C-40 Crusher 20636 | -6/Waste | Spotted C-40 Crusher 20636 | -6/Waste | Spotted C-40 Crusher 20639 | -6/Waste | EMP discharged 20647 | -6/Waste | Spotted C-40 Crusher 20673 | -6/Waste | Spotted C-40 Crusher 20678 | -6/Waste | Discovered new exit (range 12) 20686 | -6/Waste | Identified exit to Factory 20686 | -6/Waste | Entered Factory 20701 | -6/Factory | Adv. Hacking Suite fried by hacking feedback 20872 | -6/Factory | Discovered exit to Factory (range 15) 20949 | -6/Factory | Repaired Cld. VTOL Module 21020 | -6/Factory | Repaired Cld. VTOL Module? 21066 | -6/Factory | Fabricated K-01 Serf? 21131 | -6/Factory | Repaired Cld. VTOL Module 21214 | -6/Factory | Discovered exit to Factory (range 3) 21410 | -6/Factory | Discovered exit to Lower Caves (range 12) 21538 | -6/Factory | Fabricated Cld. VTOL Module (x1) 21582 | -6/Factory | Repaired Imp. System Restoration Module 21836 | -6/Factory | Entered Lower Caves 21956 | -6/Lower Caves | Encountered a Warlord checkpoint 21992 | -6/Lower Caves | Learned 4 Factory zone layouts 22016 | -6/Lower Caves | Discovered new exit (range 10) 22044 | -6/Lower Caves | Identified exit to Lower Caves 22044 | -6/Lower Caves | Entered another Lower Caves area 22044 | -6/Lower Caves | Spotted RW-X3Q(f) 22046 | -6/Lower Caves | Encountered a Master Thief 22085 | -6/Lower Caves | Discovered new exit (range 4) 22087 | -6/Lower Caves | Learned Factory emergency access door positions 22088 | -6/Lower Caves | Identified exit to Zion 22088 | -6/Lower Caves | Entered Zion 22096 | -6/Zion | Identified exit to Deep Caves 22112 | -6/Zion | Found Prototype Launcher 22112 | -6/Zion | Identified Rocket Array 22138 | -6/Zion | Discovered new exit (range 12) 22170 | -6/Zion | Learned Factory emergency access door positions 22298 | -6/Zion | Identified exit to Proximity Caves 22299 | -6/Zion | Entered Proximity Caves 22301 | -5/Proximity Caves | Learned Factory terminal intel 22344 | -5/Proximity Caves | Spotter reported a threat 22345 | -5/Proximity Caves | Spotter reported a threat 22372 | -5/Proximity Caves | Spotted B-75 Beast 22374 | -5/Proximity Caves | Discovered exit to Factory (range 10) 22377 | -5/Proximity Caves | Entered Factory 22377 | -5/Factory | Evolved 2 slots: Power x1, Propulsion x1 22380 | -5/Factory | Loaded intel: 28 terminal locations 22452 | -5/Factory | Repaired Cld. VTOL Module 22586 | -5/Factory | Discovered new exit (range 11) 22600 | -5/Factory | Discovered new exit (range 15) 22610 | -5/Factory | Identified exit to Upper Caves 22677 | -5/Factory | Search patrols dispatched 22694 | -5/Factory | Central database locked down 22864 | -5/Factory | Discovered new exit (range 10) 22866 | -5/Factory | Identified exit to Factory 22926 | -5/Factory | Discovered exit to Upper Caves (range 15) 22977 | -5/Factory | Search patrols dispatched 23225 | -5/Factory | Fabricated Hvy. Treads (x2) 23351 | -5/Factory | Spotted B-75 Beast 23438 | -5/Factory | Sucked down chute 23438 | -5/Factory | Entered Waste 23443 | -5/Waste | Spotted C-40 Crusher 23444 | -5/Waste | Spotted C-40 Crusher 23449 | -5/Waste | Spotted C-40 Crusher 23451 | -5/Waste | Spotted C-40 Crusher 23453 | -5/Waste | EMP discharged 23453 | -5/Waste | Discovered new exit (range 10) 23453 | -5/Waste | Spotted C-40 Crusher 23462 | -5/Waste | Identified exit to Factory 23462 | -5/Waste | Entered Factory 23737 | -5/Factory | Identified exit to Extension 23760 | -5/Factory | Fabricated Exp. Hacking Suite? 23809 | -5/Factory | Discovered exit to Factory (range 12) 23859 | -5/Factory | Repaired Broken Cld. VTOL Module? 23915 | -5/Factory | System corruption reached 10% 24058 | -5/Factory | Repaired Broken Adv. Heavy Treads 24186 | -5/Factory | Repaired Cld. VTOL Module 24231 | -5/Factory | Repaired Hvy. Missile Launcher? 24409 | -5/Factory | Discovered exit to Factory (range 14) 24620 | -5/Factory | Discovered exit to Factory (range 5) 25040 | -5/Factory | Fabricated Hvy. Reactive Plating? 25157 | -5/Factory | Repaired Exp. Utility Shielding 25262 | -5/Factory | Search patrols dispatched 25282 | -5/Factory | Central database locked down 25354 | -5/Factory | Fabricated Cargo Storage Unit? 25410 | -5/Factory | Fabricated HERF Cannon? 26340 | -5/Factory | Build established: Hauler-Mutant 26521 | -5/Factory | Entered Extension 27133 | -5/Extension | Rescued a captive Derelict 27152 | -5/Extension | Rescued a captive Derelict 27153 | -5/Extension | Rescued a captive Derelict 27164 | -5/Extension | Rescued A7 27339 | -5/Extension | Rescued a captive Derelict 27688 | -5/Extension | Build established: Hauler-Tank 27839 | -5/Extension | Spotted B-75 Beast 27856 | -5/Extension | Spotted B-75 Beast 27859 | -5/Extension | Allies destroyed B-75 Beast 27894 | -5/Extension | Destroyed B-75 Beast 27900 | -5/Extension | Lost 3 allies 28217 | -5/Extension | Rescued a captive Derelict 28218 | -5/Extension | Rescued a captive Derelict 28293 | -5/Extension | Rescued a captive Derelict 28424 | -5/Extension | Energy Cycler disabled 28424 | -5/Extension | Rescued a captive Derelict 28424 | -5/Extension | Rescued a captive Derelict 28425 | -5/Extension | Rescued a captive Derelict 28426 | -5/Extension | Rescued a captive Derelict 28426 | -5/Extension | Rescued a captive Derelict 28427 | -5/Extension | Rescued a captive Derelict 28428 | -5/Extension | Rescued a captive Derelict 28434 | -5/Extension | Extracted ID and sensor layout for unrecognized location from A7's data core 28455 | -5/Extension | Lost 4 allies 28559 | -5/Extension | Discovered exit to Factory (range 10) 28565 | -5/Extension | Discovered new exit (range 6) 28567 | -5/Extension | Core integrity fell below 50% 28575 | -5/Extension | Disrupted transfer network 28576 | -5/Extension | Identified exit to Cetus 28579 | -5/Extension | Entered Cetus 28579 | -5/Cetus | Accompanied by 1 ally 28604 | -5/Cetus | Lost 3 allies 28610 | -5/Cetus | Spotted Cetus Guard 28610 | -5/Cetus | Spotted Cetus Guard 28614 | -5/Cetus | Spotted Cetus Guard 28618 | -5/Cetus | Destroyed Cetus Guard 28618 | -5/Cetus | Spotted Cetus Guard 28624 | -5/Cetus | Destroyed Cetus Guard 28638 | -5/Cetus | Destroyed Cetus Guard 28648 | -5/Cetus | Destroyed Cetus Guard 28816 | -5/Cetus | Discovered new exit (range 15) 28849 | -5/Cetus | Identified exit to Archives 28851 | -5/Cetus | Entered Archives 28884 | -5/Archives | Met Zhirov 28890 | -5/Archives | Reinforcements dispatched to Archives 28905 | -5/Archives | Discovered new exit (range 13) 28930 | -5/Archives | Identified exit to Hub_04(d) 28933 | -5/Archives | Entered Hub_04(d) 29342 | -5/Hub_04(d) | Discovered exit to Factory (range 12) 29619 | -5/Hub_04(d) | Build established: Scavenger-Tank 29628 | -5/Hub_04(d) | Discovered exit to Factory (range 5) 29968 | -5/Hub_04(d) | Network Hub disabled 29981 | -5/Hub_04(d) | Spotted Lightning 29987 | -5/Hub_04(d) | Spotted Lightning 29990 | -5/Hub_04(d) | Spotted Lightning 29995 | -5/Hub_04(d) | Destroyed Lightning 30001 | -5/Hub_04(d) | System corruption reached 30% 30002 | -5/Hub_04(d) | Network Hub disabled 30011 | -5/Hub_04(d) | Destroyed Lightning 30031 | -5/Hub_04(d) | Destroyed Lightning 30052 | -5/Hub_04(d) | Destroyed 7 combat bots 30168 | -5/Hub_04(d) | Network Hub disabled 30171 | -5/Hub_04(d) | Spotted Lightning 30171 | -5/Hub_04(d) | Entered Factory 30171 | -4/Factory | Evolved 2 slots: Propulsion x1, Utility x1 30269 | -4/Factory | Repaired Cld. VTOL Module 30306 | -4/Factory | Repaired Cld. VTOL Module 30351 | -4/Factory | Repaired Plasma Sword 30407 | -4/Factory | Repaired Centrium Medium Armor Plating 30469 | -4/Factory | Discovered new exit (range 15) 30519 | -4/Factory | Fabricated Exp. Hacking Suite (x1) 30596 | -4/Factory | Build established: Hacker-Scout 30681 | -4/Factory | Discovered new exit (range 6) 30725 | -4/Factory | Identified exit to Research 30858 | -4/Factory | Repaired Cld. Nuclear Pulse Thruster 30895 | -4/Factory | Repaired Cld. VTOL Module 31140 | -4/Factory | Discovered new exit (range 4) 31149 | -4/Factory | Identified exit to Upper Caves 31267 | -4/Factory | Central database locked down 31396 | -4/Factory | Fabricated Cld. Impulse Thruster (x1) 31398 | -4/Factory | Fabricated Gravity Neutralizer (x1) 31438 | -4/Factory | Spotted B-86 Titan 31671 | -4/Factory | Search patrols dispatched 31711 | -4/Factory | Build established: Wizard-Scout 31747 | -4/Factory | Fabricated Cld. Impulse Thruster (x1) 31830 | -4/Factory | Repaired Exp. Utility Shielding 31911 | -4/Factory | Fabricated Graviton Reactor (x1) 31975 | -4/Factory | Found Prototype Processor 31975 | -4/Factory | Identified Exp. Melee Analysis Suite 31977 | -4/Factory | Found Faulty Exp. Melee Analysis Suite 32000 | -4/Factory | Fabricated Cld. Impulse Thruster (x1) 32074 | -4/Factory | Repaired Plasma Sword 32074 | -4/Factory | Build established: Wizard-Sprinter 32164 | -4/Factory | Repaired Cld. Nuclear Pulse Thruster 32171 | -4/Factory | Discovered exit to Research (range 5) 32359 | -4/Factory | Manually triggered Chute Trap 32359 | -4/Factory | Sucked down chute 32359 | -4/Factory | Entered Waste 32362 | -4/Waste | Spotted C-40 Crusher 32363 | -4/Waste | Spotted C-40 Crusher 32371 | -4/Waste | Spotted C-40 Crusher 32371 | -4/Waste | Spotted C-40 Crusher 32372 | -4/Waste | Spotted C-40 Crusher 32374 | -4/Waste | EMP discharged 32374 | -4/Waste | Spotted C-40 Crusher 32384 | -4/Waste | Discovered new exit (range 10) 32385 | -4/Waste | Identified exit to Factory 32385 | -4/Waste | Entered Factory 32459 | -4/Factory | Discovered exit to Upper Caves (range 6) 32470 | -4/Factory | Found Exp. Signal Interpreter 32635 | -4/Factory | First assault squad dispatched 32639 | -4/Factory | Spotted B-86 Titan 32667 | -4/Factory | Discovered exit to Research (range 8) 32842 | -4/Factory | Fabricated Quantum Shading Machine (x1) 32861 | -4/Factory | System corruption reached 10% 33042 | -4/Factory | Build established: Wizard-Scout 33333 | -4/Factory | Fabricated Cld. Impulse Thruster (x1) 33345 | -4/Factory | Fabricated Cld. Impulse Thruster (x1) 33351 | -4/Factory | Fabricated Cld. Impulse Thruster (x1) 33468 | -4/Factory | Repaired Cld. Impulse Thruster 33523 | -4/Factory | Repaired Cld. Impulse Thruster 33579 | -4/Factory | Repaired Exp. Sensor Array 33632 | -4/Factory | Repaired Broken Adv. Phase Shifter 33779 | -4/Factory | Repaired Cld. Impulse Thruster 33798 | -4/Factory | Repaired Smartbomb Launcher 33843 | -4/Factory | Discovered exit to Research (range 15) 33867 | -4/Factory | Build established: Machinist-Scout 34002 | -4/Factory | Discovered exit to Research (range 7) 34108 | -4/Factory | Fabricated Graviton Reactor (x1) 34128 | -4/Factory | Fabricated Nanosword (x1) 34135 | -4/Factory | Search patrols dispatched 34385 | -4/Factory | Search patrols dispatched 34509 | -4/Factory | Build established: Machinist-Sprinter 34821 | -4/Factory | Repaired Graviton Reactor 34917 | -4/Factory | Repaired Exp. Utility Shielding 35040 | -4/Factory | Repaired Cld. Impulse Thruster? 35135 | -4/Factory | Search patrols dispatched 35163 | -4/Factory | Entered Upper Caves 35218 | -4/Upper Caves | Learned Research terminal intel 35259 | -4/Upper Caves | Learned Research terminal intel 35268 | -4/Upper Caves | Learned location of 1 exit from Research 35288 | -4/Upper Caves | Discovered new exit (range 14) 35291 | -4/Upper Caves | Identified exit to Upper Caves 35318 | -4/Upper Caves | Entered another Upper Caves area 35328 | -4/Upper Caves | Discovered exit to Research (range 10) 35347 | -4/Upper Caves | Learned 8 Research zone layouts 35388 | -4/Upper Caves | Learned Research emergency access door positions 35409 | -4/Upper Caves | Discovered new exit (range 13) 35418 | -4/Upper Caves | Identified exit to Warlord 35418 | -4/Upper Caves | Entered Warlord 35426 | -4/Warlord | System corruption cleaned by Quarantine Array 35481 | -4/Warlord | Learned 4 Quarantine zone layouts 35481 | -4/Warlord | Learned 4 Command zone layouts 35481 | -4/Warlord | Learned Factory garrison access intel 35481 | -4/Warlord | Learned Research scanalyzer intel 35563 | -4/Warlord | Warlord's base attacked by MAIN.C 35584 | -4/Warlord | Met Warlord 35586 | -4/Warlord | Opened Warlord's prototype stash 35588 | -4/Warlord | Found System Mapper 35590 | -4/Warlord | Found Prototype Device 35590 | -4/Warlord | Identified Thermal Barrier 35593 | -4/Warlord | Found Prototype Device 35593 | -4/Warlord | Identified Exp. Cloaking Device 35632 | -4/Warlord | Opened side exit 35730 | -4/Warlord | Discovered new exit (range 14) 35732 | -4/Warlord | Identified exit to Proximity Caves 35733 | -4/Warlord | Entered Proximity Caves 35741 | -3/Proximity Caves | Destroyed 10 combat bots 35777 | -3/Proximity Caves | Spotted B-86 Titan 35932 | -3/Proximity Caves | Discovered exit to Research (range 14) 35936 | -3/Proximity Caves | Entered Research 35936 | -3/Research | Evolved 2 slots: Propulsion x1, Utility x1 35937 | -3/Research | Identified exit to Research 35940 | -3/Research | Loaded intel: 21 terminal locations 35941 | -3/Research | Loaded intel: 6 scanalyzer locations 35963 | -3/Research | Identified exit to Armory 35963 | -3/Research | Identified exit to Testing 35965 | -3/Research | Discovered exit to Research (range 8) 36154 | -3/Research | Fabricated Exp. Utility Shielding? 36164 | -3/Research | Found Prototype Processor 36416 | -3/Research | Entered Testing 36419 | -3/Testing | Identified Spectral Analyzer 36473 | -3/Testing | Spotted PD-R8TMLIFHJI 36613 | -3/Testing | Fabricated Graviton Reactor (x1) 36679 | -3/Testing | Spotted PD-3IZGTZTBII 36680 | -3/Testing | Discovered exit to Research (range 5) 36699 | -3/Testing | Rewired PD-3IZGTZTBII 36709 | -3/Testing | Build established: Wizard-Ninja 36800 | -3/Testing | Found Prototype Hackware 36800 | -3/Testing | Identified Ghost Barrier 36848 | -3/Testing | Found Hvy. Regenerative Plating 36938 | -3/Testing | Found Prototype Energy Cannon 36938 | -3/Testing | Identified Imp. Potential Cannon 36974 | -3/Testing | Repaired Cld. Impulse Thruster 37082 | -3/Testing | Repaired Graviton Reactor 37206 | -3/Testing | Repaired Graviton Reactor 37316 | -3/Testing | Repaired Cld. Impulse Thruster 37397 | -3/Testing | Repaired Exp. Utility Shielding 37439 | -3/Testing | Entered Research 37439 | -2/Research | Accompanied by 1 ally 37439 | -2/Research | Warlord forces began assault on 0b10 37439 | -2/Research | Evolved 2 slots: Utility x2 37440 | -2/Research | Loaded intel: 22 terminal locations 37529 | -2/Research | Met up with Warlord 37549 | -2/Research | Research machine network offline 37790 | -2/Research | Spotted Striker 37876 | -2/Research | Spotted Executioner 37879 | -2/Research | Spotted Executioner 37943 | -2/Research | Discovered new exit (range 5) 37946 | -2/Research | Identified exit to Access 37967 | -2/Research | Borebot progress halted 37973 | -2/Research | Spotted Executioner 37974 | -2/Research | Spotted Striker 38010 | -2/Research | Spotted Executioner 38010 | -2/Research | Spotted Executioner 38036 | -2/Research | Discovered exit to Access (range 20) 38077 | -2/Research | Borebot progress halted 38111 | -2/Research | Spotted Striker 38195 | -2/Research | Borebot progress halted 38197 | -2/Research | Discovered new exit (range 4) 38200 | -2/Research | Identified exit to Quarantine 38200 | -2/Research | Entered Quarantine 38215 | -2/Quarantine | Cryocooling Duct disabled 38230 | -2/Quarantine | Ambient heat levels rising (+20) 38230 | -2/Quarantine | Non-combat units ordered to evacuate 38235 | -2/Quarantine | Found Alien Slashing Weapon 38235 | -2/Quarantine | Identified Sigix Broadsword 38261 | -2/Quarantine | Found Alien Artifact 38271 | -2/Quarantine | Identified Subatomic Replicator 38384 | -2/Quarantine | Lost 4 allies 38397 | -2/Quarantine | Repaired Graviton Reactor 38434 | -2/Quarantine | Repaired Exp. Sensor Array 38472 | -2/Quarantine | Repaired Cld. Impulse Thruster 38485 | -2/Quarantine | Spotted Alpha 7 38540 | -2/Quarantine | Repaired Quantum Shading Machine 38578 | -2/Quarantine | Repaired Cld. Impulse Thruster 38615 | -2/Quarantine | Repaired Graviton Reactor 38643 | -2/Quarantine | Repaired Exp. Utility Shielding 38658 | -2/Quarantine | Found Alien Artifact 38691 | -2/Quarantine | Identified Phase Redirector 38698 | -2/Quarantine | Found Alien Artifact 38701 | -2/Quarantine | Identified Phase Armor 38799 | -2/Quarantine | Found Alien Reactor 38815 | -2/Quarantine | Identified Matter Drive 38878 | -2/Quarantine | Found Alien Artifact 38878 | -2/Quarantine | Identified Dimensional Node Initializer 38878 | -2/Quarantine | Initialized slip node 38880 | -2/Quarantine | Found Alien Artifact 38880 | -2/Quarantine | Identified Transdimensional Reconstructor 38880 | -2/Quarantine | Warped through subspace to slip node 38886 | -2/Quarantine | Found Alien Artifact 38886 | -2/Quarantine | Identified Hpw. Transdimensional Reconstructor 38886 | -2/Quarantine | Warped through subspace to slip node 38888 | -2/Quarantine | Used Subatomic Replicator to create Alien Artifact 38901 | -2/Quarantine | Identified Supercharged TR 39062 | -2/Quarantine | Found Alien Impact Weapon 39080 | -2/Quarantine | Spotted Fortress 39098 | -2/Quarantine | Discovered new exit (range 6) 39099 | -2/Quarantine | Identified exit to Section 7 39099 | -2/Quarantine | Entered Section 7 39119 | -2/Section 7 | Found Alien Artifact 39170 | -2/Section 7 | Discovered exit to Access (range 14) 39196 | -2/Section 7 | Spotted B-90 Cyclops 39266 | -2/Section 7 | Spotted S7 Guard 39403 | -2/Section 7 | Identified Core Stripper 39405 | -2/Section 7 | Destroyed S7 Guard 39630 | -2/Section 7 | Spotted Alpha 7 39631 | -2/Section 7 | Spotted Alpha 7 39644 | -2/Section 7 | Identified Integrity Redistributor 39846 | -2/Section 7 | Spotted S7 Guard 39954 | -2/Section 7 | Destroyed S7 Guard 40156 | -2/Section 7 | Repaired Exp. Utility Shielding? 40274 | -2/Section 7 | Found Alien Artifact 40290 | -2/Section 7 | Identified Integrated Thermoelectric Network 40290 | -2/Section 7 | Installed Integrated Thermoelectric Network, gained heat-energy exchange potential 40405 | -2/Section 7 | Repaired Cld. Impulse Thruster 40440 | -2/Section 7 | Found Alien Artifact 40478 | -2/Section 7 | Found Alien Artifact 40555 | -2/Section 7 | Identified Spacefold Activator 40555 | -2/Section 7 | Identified Core Membrane 40555 | -2/Section 7 | Installed Core Membrane, gained immunity to corruption 40602 | -2/Section 7 | Found Alien Artifact 40625 | -2/Section 7 | Identified Integrated Reactor 40625 | -2/Section 7 | Installed Integrated Reactor, increased core energy generation (+10) 40761 | -2/Section 7 | Build established: Wizard-Sprinter 40810 | -2/Section 7 | Spotted B-99 Colossus 40841 | -2/Section 7 | Spotted Executioner 40841 | -2/Section 7 | Spotted Executioner 40914 | -2/Section 7 | Found Integrity Redistributor 40914 | -2/Section 7 | Used Integrity Redistributor, redistributed integrity from core (-51) 40924 | -2/Section 7 | Found Alien Artifact 40924 | -2/Section 7 | Identified LRC Matter Compressor 40924 | -2/Section 7 | Installed LRC Matter Compressor, increased matter storage capacity (+125) 40925 | -2/Section 7 | Found Alien Artifact 40925 | -2/Section 7 | Identified LRC Inertial Stabilizer 40925 | -2/Section 7 | Installed LRC Inertial Stabilizer, increased mass support (+10) 40995 | -2/Section 7 | Found Integrity Redistributor 41085 | -2/Section 7 | Entered Access 41085 | -1/Access | Evolved 2 slots: Propulsion x1, Weapon x1 41088 | -1/Access | Identified exit to Surface 41150 | -1/Access | Fabricated Quantum Capacitor? 41172 | -1/Access | Identified exit to Command 41290 | -1/Access | Spotted B-99 Colossus 41311 | -1/Access | Fabricated Exp. Utility Shielding? 41328 | -1/Access | Repaired Exp. Utility Shielding 41354 | -1/Access | Repaired Adv. Phase Shifter 41445 | -1/Access | Build established: Hacker-Sprinter 41667 | -1/Access | Repaired Graviton Reactor 41678 | -1/Access | Entered Command 41893 | -1/Command | Warped through subspace to slip node 41893 | -1/Command | Discovered new exit (range 3) 41895 | -1/Command | Identified exit to Access_0 41962 | -1/Command | Entered Access_0 41963 | -1/Access_0 | Met Architect 41965 | -1/Access_0 | Build established: Machinist-Sprinter 41967 | -1/Access_0 | Destroyed A8 42005 | -1/Access_0 | Subspace Access Node disabled 42008 | -1/Access_0 | Destroyed 8 combat bots 42031 | -1/Access_0 | A6 warped into view 42072 | -1/Access_0 | A5 warped into view 42074 | -1/Access_0 | Destroyed A5 42083 | -1/Access_0 | Subspace Access Node disabled 42121 | -1/Access_0 | Used Integrity Redistributor, redistributed integrity from core (-126) 42160 | -1/Access_0 | Subspace Access Node disabled 42172 | -1/Access_0 | A4 warped into view 42175 | -1/Access_0 | Destroyed A4 42253 | -1/Access_0 | Found Sigix Corpse 42274 | -1/Access_0 | Destroyed A2 42280 | -1/Access_0 | Destroyed A6 42295 | -1/Access_0 | A3 warped into view 42308 | -1/Access_0 | Used Integrity Redistributor, redistributed integrity from core (-70) 42316 | -1/Access_0 | Core integrity fell below 50% 42321 | -1/Access_0 | Singularity Gate disabled 42370 | -1/Access_0 | Destroyed A3 42391 | -1/Access_0 | Destroyed 10 combat bots 42396 | -1/Access_0 | Architect warped through subspace 42481 | -1/Access_0 | Subspace Access Node disabled 42610 | -1/Access_0 | Lost 5 parts (2p1n1u1w) 42620 | -1/Access_0 | Found Exp. Core Analyzer 42679 | -1/Access_0 | Core integrity fell below 20% 42684 | -1/Access_0 | Destroyed Architect 42695 | -1/Access_0 | Lost 3 parts (3u) 42699 | -1/Access_0 | Found Hpw. Transdimensional Reconstructor 42701 | -1/Access_0 | Extracted unknown sensor trigger ID from Architect's data core 42896 | -1/Access_0 | Warped through subspace to slip node 42896 | -1/Access_0 | Discovered exit to Surface (range 8) 42898 | *** | Escaped! Last Messages --------------- [REDACTED] >>Record! "Log L.RSL58V7F" [REDACTED] >>Record! "Log L.VFLK3RLK" Warlord has finally begun his main assault, and it's proceeding quite well. All upper Research areas are under control, as are Testing, Quarantine, and Armory. At this rate, MAIN.C and Warlord forces will wipe each other out, or at least severely cripple one another. >>Record! "Log L.XLJZXWC5" [REDACTED] >>Record! "Log L.Y1U23ASU" [REDACTED] 42864_ Slug penetrates Workstation. 42868_ Slug penetrates Wall. 42868_ Workstation disabled. 42884_ Acquired 89 matter. 42889_ Dropped Hvy. Regenerative Plating. 42889_ Acquired Sigix Corpse. 42896_ Warped through subspace, drawn to slip node. 42896_ EXIT=FOUND: SURFACE Map ----- +----------------------------------------------------+ | | | | | | | | | | | | | | | | | | | | | | | | | | | | | | | | | ?????????????????????????????????????????????????? | | ?????????????????????????????????????????????????? | | ?????????????????????????????????????????????????? | | ?????????????????????????????????????????????????? | | ?????????????????????????????????????????????????? | | ?????????????????????????????????????????????????? | | ????????????????????????###??????????????????????? | | ???????????????????????## ##?????????????????????? | | ???????????????????????# #?????????????????????? | | ???????????????????????# @ #?????????????????????? | | ??????????????????????## #?????????????????????? | | ??????????????????????# #?????????????????????? | | ??????????????????????# ##?????????????????????? | | ??????????????????????## #?????????????????????? | | ??????????????????????# #?????????????????????? | | ??????????????????????# ##?????????????????????? | | ??????????????????????# < #?????????????????????? | | ??????????????????????# ##?????????????????????? | | ??????????????????????## #??????????????????????? | | ???????????????????????####??????????????????????? | | ?????????????????????????????????????????????????? | | ?????????????????????????????????????????????????? | | ?????????????????????????????????????????????????? | | ?????????????????????????????????????????????????? | | ?????????????????????????????????????????????????? | | ?????????????????????????????????????????????????? | | ?????????????????????????????????????????????????? | | ?????????????????????????????????????????????????? | | ?????????????????????????????????????????????????? | | ?????????????????????????????????????????????????? | | ?????????????????????????????????????????????????? | | ?????????????????????????????????????????????????? | | ?????????????????????????????????????????????????? | | ?????????????????????????????????????????????????? | +----------------------------------------------------+ Best States ------------- Heat Dissipation 87 Coolant Potential 80 Energy Generation 82 Energy Capacity 580 Matter Stores 425 Matter Capacity 425 Sight Range 24 Robot Scan Range 20 Terrain Scan Density 10 ECM Strength 2 Cloak Strength 7 Power Amplification 40 Additional Mass Support 20 Armor Coverage 1350 Resistance: KI 40 Resistance: TH 15 Resistance: EM 20 Propulsion Shielding 90 Utility Shielding 90 Phase Shifting 15 Evasion (%) 94 Targeting Accuracy 8 Melee Accuracy 12 Core Analysis 8 Recoil Reduction 4 Offensive Hacking 74 Defensive Hacking 32 Item Schematics ----------------- Cargo Storage Unit | -10/Materials | Hacked Hacking Suite | -9/Materials | Scanalyzed Adv. Treads | -9/Materials | Scanalyzed Exp. Sensor Array | -8/Materials | Scanalyzed Imp. Utility Shielding | -8/Materials | Scanalyzed Hvy. Treads | -7/Factory | Hacked Cld. VTOL Module | -7/Factory | Hacked Adv. Hacking Suite | -7/Factory | Hacked Combat Drone Bay | -7/Data Miner | Free Lgt. Regenerative Plating | -7/Data Miner | Free Cld. Cesium-ion Thruster | -7/Data Miner | Free Exp. Targeting Computer | -7/Data Miner | Free Scatter Rocket Array | -7/Data Miner | Free Gyrokinetic Inverter | -7/Data Miner | Free Adv. Shield Generator | -7/Data Miner | Free Variable Charge Gun | -7/Data Miner | Free Imp. Arc Projector | -7/Data Miner | Free Exp. Utility Shielding | -6/Factory | Hacked Triangulator | -6/Factory | Hacked Imp. Hacking Suite | -6/Factory | Hacked Graphene Brace | -6/Factory | Hacked Tesla Rifle | -6/Zion | Archive Power Amplifier | -6/Zion | Archive Focal Shield | -6/Zion | Archive Lgt. Antimatter Reactor | -6/Zion | Archive Imp. Proton Missile Launcher | -6/Zion | Archive Imp. Weapon Cycler | -6/Zion | Archive Magnetic Acceleration Cannon | -6/Zion | Archive Power Sword | -6/Zion | Archive Imp. Coolant Injector | -6/Zion | Archive Nuclear Pulse Thruster | -6/Zion | Archive Hyp. Coil Gun | -6/Zion | Archive Beamcaster | -6/Zion | Archive Adv. Transmission Jammer | -6/Zion | Archive Cld. Nuclear Pulse Thruster | -5/Factory | Hacked Exp. Hacking Suite | -5/Factory | Hacked Imp. Dynamic Insulation System | -5/Factory | Extracted Hvy. Plasma Cannon | -5/Factory | Extracted Adv. Heavy Treads | -5/Factory | Scanalyzed Q-thruster | -5/Factory | Hacked Hvy. Reactive Plating | -5/Factory | Hacked HERF Cannon | -5/Factory | Hacked Cld. Impulse Thruster | -4/Factory | Hacked Gravity Neutralizer | -4/Factory | Hacked Nanosword | -4/Factory | Hacked Graviton Reactor | -4/Factory | Hacked Exp. Melee Analysis Suite | -4/Factory | Scanalyzed Quantum Shading Machine | -4/Factory | Hacked Exp. Power Amplifier | -4/Factory | Hacked Adv. Phase Shifter | -4/Factory | Scanalyzed Com. Particle Reactor | -3/Testing | Scanalyzed Hvy. Regenerative Plating | -3/Testing | Hacked Med. Regenerative Plating | -3/Testing | Hacked Enh. Armored Medium Treads | -3/Testing | Archive Cld. Antigrav System | -3/Testing | Archive Molecular Scythe | -3/Testing | Archive Adv. Quantum Shading Machine | -2/Section 7 | Archive Gui. Micro-nuke Launcher | -2/Section 7 | Archive Exp. Coolant Injector | -2/Section 7 | Archive Prc. Matter Filter | -2/Section 7 | Archive Imp. KE Penetrator | -2/Section 7 | Archive Exp. Transmission Jammer | -2/Section 7 | Archive Quantum Capacitor | -2/Section 7 | Hacked Cld. Field Propulsion Drive | -2/Section 7 | Archive Adv. Plasma Rifle | -2/Section 7 | Archive Robot Schematics ------------------ B-48 Gladiator | -7/Factory | Hacked G-50 Soldier | -7/Data Miner | Free L-41 Fighter | -7/Data Miner | Free M-14 Sweeper | -7/Data Miner | Free S-27 Virus | -7/Data Miner | Free T-07 Excavator | -6/Factory | Hacked C-57 Dissector | -6/Zion | Archive R-06 Scavenger | -6/Zion | Archive R-10 Processor | -3/Testing | Archive B-74 Champion | -2/Section 7 | Archive H-77 Assassin | -2/Section 7 | Archive Fabricated ------------ Cld. VTOL Module | x1 | -7/Factory Cld. VTOL Module | x1 | -7/Factory Cld. VTOL Module | x1 | -7/Factory Cld. VTOL Module | x1 | -7/Factory Adv. Hacking Suite | x1 | -7/Factory Wave Gun | x2 | -6/Factory | Preloaded S-27 Virus | x4 | -6/Factory | Preloaded Exp. Utility Shielding | x1 | -6/Factory H-66 Slayer | x2 | -6/Factory | Preloaded Adv. Hacking Suite | x1 | -6/Factory Adv. Hacking Suite | x1 | -6/Factory Adv. Hacking Suite | x1 | -6/Factory K-01 Serf | x1 | -6/Factory | Preloaded Cld. VTOL Module | x1 | -6/Factory Hvy. Treads | x2 | -5/Factory Exp. Hacking Suite | x1 | -5/Factory Hvy. Reactive Plating | x1 | -5/Factory Cargo Storage Unit | x1 | -5/Factory HERF Cannon | x1 | -5/Factory Exp. Hacking Suite | x1 | -4/Factory Cld. Impulse Thruster | x1 | -4/Factory Gravity Neutralizer | x1 | -4/Factory Cld. Impulse Thruster | x1 | -4/Factory Graviton Reactor | x1 | -4/Factory Cld. Impulse Thruster | x1 | -4/Factory Quantum Shading Machine | x1 | -4/Factory Cld. Impulse Thruster | x1 | -4/Factory Cld. Impulse Thruster | x1 | -4/Factory Cld. Impulse Thruster | x1 | -4/Factory Graviton Reactor | x1 | -4/Factory Nanosword | x1 | -4/Factory Exp. Utility Shielding | x1 | -3/Research Graviton Reactor | x1 | -3/Testing Quantum Capacitor | x2 | -1/Access Exp. Utility Shielding | x1 | -1/Access Alien Tech Used ----------------- Core Expander Sigix Broadsword Dimensional Node Initializer Transdimensional Reconstructor High-powered Transdimensional Reconstructor Subatomic Replicator Core Stripper Integrated Thermoelectric Network Core Membrane Spacefold Activator Integrated Reactor Integrity Redistributor LRC Matter Compressor LRC Inertial Stabilizer Supercharged TR Phase Redirector Achievements -------------- Artifact Hunter Guerrilla Style The Bigger They Are Challenges ------------ None Game ------ Seed ExoskeletonPhysicsWings Manual? 0 Play Time 08:33:27 Cumulative 346.3 hours Start 2024.04.15 @ 16:55:56 End 2024.04.16 @ 20:07:14 Sessions 7 Manual Loads 0 Difficulty Rogue Special Mode None Game No. 225 Rogue 225 Adventurer 0 Explorer 0 Win Type 0 Total 20 Types 13/2/2/1/1/0/0/1/0 Lore% 84 Gallery% 85 Achievement% 77 Wizard Run 0 Options --------- Layout 0 ASCII 0 Keyboard 1 Movement Numpad Keybinds 0 Fullscreen 2 Font 18/SmallcapsGlow Map View 76x50 Zoom Use 0% Tactical HUD 1 Map Filters NONE Filters NONE Steam 1 RUN: 702eadb7-fd24-43d0-b6fd-d45effeec32a